Workbook

Sheet Instructions
C1: Instructions
B3: ;g ,Dly izksxzke esjs ije~ iwT; xq:nso Jh Jh 1008 oklqnso th egkjkt o esjs bZ"V izHkq t; ctjaxcyh o ikcwth egkjkt dks lefiZr gSaA esjs ekrk & firk o xq:tuksa ds vk'khokZn ls ;g izksxzke e/;izns'k jkT; ds lHkh foHkkx ds dkfeZdksa dh lsok esa lknj izLrqr gSaA
C4: How to use this Programme
C5: If you have Hindi font problem, then first you should install Hindi font KRUTI DEV 010 in your computer.
C6: lcls igys vki jktLFkku lHkh 'kSf{kd osclkbZV ij ,Dly xq: ghjkyky tkV }kjk fufeZr vk;dj x.kuk ,Dly ,Iyhds'ku 2020&21 ds viMsV otZu+ dks MkmuyksM djsasaA blds vykok vki Google ij Heeralal Jat fy[kdj lpZ djsaxs rks Hkh vkidks ist fey tk;sxkA tgka ls vki ;g izksxzke MkmuyksM dj ldrs gSaA mlds ckn ftrusa dkfeZdksa dh vk;dj x.kuk djuh gS] mruh gh ,Dly izksxzke 'khV dks muds uke ls vyx vyx Qkby esa Save dj ysosaA izR;sad dkfeZd ds fy, ds fy, ,d QkbZy dks mi;ksx esa ysosaA
B7: t; xq:nso | C7: vki bl ,Dly izksxzke ij dk;Z djus ls igys bUde VSDl foHkkx ds u;s :Yl o fu;e bUde VSDl foHkkx dh website vFkok ys[kk foK vDVqcj 2020 dkss t:j i<+sA oSls bl ,Dly izksxzke esa iq.kZ lko/kkuh cjrh xbZ gSa] fQj Hkh foHkkx ds fu;e gh loksZijh o fljks/kk;Z gSaA
B8: Most Doable Work | D8: ije~ iwT; xq:nso
B9: vki bl ,Dly izksxzke esa nksa 'khVksa ekLVj MkVk 'khV o ,DLV~zk fMMsD'ku 'khV dks lko/kkuhiwoZd vuykWd lsy tks lQsn dyj esa gSa] dks Hkjuk ¼MkVk fQfyax½ gSaA vkxs dh 'khVs vkWVksa tujsV gSaA os lHkh ykWd gSaA ogk ij vkidks dqN ugh djuk gSaA flQZ A4 lkbZt esa fizUV fudkyuk gSa vkSj ist Hkh lsV fd;k gqvk gSaA
B11: Only Put Here Curser | C11: यदि आपको आयकर की नयी व विद्यमान कर स्लैब देखनी हो तो क्रसर को सामने की सेल पर ले जाइये। | D11: new update on 01-12-2020 new updated related you tube video link
B13: ;g ,Dly izksaxzke lHkh dkfeZdksa ds fy, leku :i ls rS;kj fd;k x;k gSA ladyu ,oa x.kuk esa iw.kZ lko/kkuh j[kh xbZ gSA fQj Hkh =qfV ;k fdlh Hkh izdkj dh fofHkUurk dh fLFkfr esa vk;dj foHkkx ds fu;e gh ekU; gSA rS;kjdrkZ dk dksbZ mÙkjnkf;Ro ugha gksxkA | D13: https://youtu.be/FwBqjLiBd28
B15: This Programme Developed by: HEERALAL JAT
B16: Senior Teacher
B17: Mahatma Gandhi Government School (English Medium) BAR , PALI
B18: heeralaljatchandawal@gmail.com
B19: V./P. - Chandawal Nagar, Teh.- sojat city, Dist.- Pali (Raj) 306306
C21: Watch the You Tube Video For More Information.
C24: https://www.youtube.com/playlist?list=PLmNJTudmvkgL-ZI7qFKfQ6oz6WTNnW31z
C26: You Tube Channel
C28: https://www.youtube.com/c/Heeralaljat/

Sheet Master Data
AC1: 1 | AD1: 2020-04-01
B2: https://www.youtube.com/watch?v=kSG6hPX7VSQ | E2: EMPLOYEE PERSONAL DETAIL | T2: JUN | U2: 20 | AA2: 2019-08-01 | AC2: 2 | AD2: 2020-05-01
AC3: 3 | AD3: 2020-06-01
B4: Office Name :- | D4: PRINCIPAL, H.S.S.Girls PICHHORE (3932003025) M.P. | T4: JUL | X4: 1000 | AA4: 2019-09-01 | AC4: 4 | AD4: 2020-07-01
AC5: 5 | AD5: 2020-08-01
B6: Employee Name :- | D6: Heeralal jat | F6: Designation :- | H6: Middle Teacher | T6: AUG | X6: 620 | AA6: 2019-10-01 | AC6: 6 | AD6: 2020-09-01
AC7: 7 | AD7: 2020-10-01
B8: School Name :- | C8: Posting Place :- | D8: GHS HARIJAN BASTI PICHHORE | F8: DDO Name :- | H8: B.E.O.PICHHOR | T8: SEP | AA8: 2019-11-01 | AC8: 8 | AD8: 2020-11-01
AC9: 9 | AD9: 2020-12-01
B10: Employee Unique Code :- | D10: 390263384 | F10: UID AADHAR No. :- | H10: 1234 6547 1475 | T10: OCT | AA10: 2019-12-01 | AC10: 10 | AD10: 2021-01-01
AC11: 11 | AD11: 2021-02-01
B12: PAN No. :- | D12: abcde1234h | F12: TAN NO. :- | T12: NOV | AA12: 2020-01-01 | AC12: 12
B14: GPF No. :- | D14: 11 | F14: SI No. :- | H14: 123456 | T14: DEC | AA14: 2020-02-01
B16: PRAN No. :- | D16: 110161963331 | F16: Bank A/C No. :- | H16: 121212121212121
B18: Age Group :- | D18: Under 60 | F18: Treasury Location :- | H18: Picchor Sub Treasury | K18: ije~ iwT; xw:nso Jh Jh 1008 oklwnso th egkjkt | S18: YES | T18: Under 60 | U18: 8 | V18: GPF | W18: Jaipur (U.A.) | Y18: Regular Pay
S19: NO | T19: Above 60 | U19: 9 | V19: NPS | W19: Ajmer | Y19: Fix Pay
E20: EMPLOYEE PAY DETAIL | T20: Above 80
B23: foadykax HkÙkk %& | C23: foadykax HkÙkk %& | E23: 0 | F23: vkidks osru fey jgk gS %& | I23: Regular Pay
B25: 7th PAY HRA izfr'kr esa %& | E25: 8 | F25: % GPF / NPS :- | I25: NPS | AA25: JAN | AB25: 2020-03-01
AA26: FEB | AB26: 2020-04-01
AA27: MAR | AB27: 2020-05-01
AA28: APR | AB28: 2020-06-01
C29: First Unlock Cell Entry Fill Up Then Click On Go to Next Sheet Button | AA29: MAY | AB29: 2020-07-01
F30: Use Button For going to Next Sheet H | AA30: JUN | AB30: 2020-08-01
AA31: JUL | AB31: 2020-09-01
AA32: AUG | AB32: 2020-10-01
AA33: SEP | AB33: 2020-11-01
AA34: OCT | AB34: 2020-12-01
AA35: NOV | AB35: 2021-01-01
AA36: DEC | AB36: 2021-02-01

Sheet Extra Ded.
A1: https://www.youtube.com/watch?v=NWwIhkhEUoc
B2: अधिक जानकारी के लिए ऊपर Youtube video का लिंक दिया गया है।
C3: osru dVkSrh ds vfrfjDr dVkSfr;k ftlds rgr vki vk;dj esa NwV pkgrs gSa] rFkk vfrfjDr ¼vU;½ vk; dks ;gkW ij bUnzkt djsA
C6: 1- edku fdjk;k HkRrk ¼;fn jlhn ds ek/;e ls NwV ysuh gS rks ;gkW fy[ksa½ | G6: 20- bfDoVh fyad lsfoax Ldhe
C7: 2- LVs.MMZ fMMsD'ku (Standard Deduction) 50]000 ¼vf/kdre½ | E7: 50000 | G7: 21- x`g fdjk;k] /kkjk 10¼13-A½ ds vUrxrZ ,oa /kkjk 10¼14½ds vUrxrZ vU; Hkrs tks dj eqDÙk gSA
C8: 3- euksjatu Hkrk /kkjk 16 (ii) ds vUrxZr | G8: 22- LFkfxr okf"kZdh ¼Defferred Annuty)
C9: 4- O;o;k; dj /kkjk 16 ¼iii½ ds vUrxrZ | G9: 23- osru ds vykok tek djk;k x;k aavk;dj (TDS)
C10: 5- x`g lEifr ls izkIr fdjk;k & vk; | G10: 24- vU; vk; ¼/kkjk 80 lh ds vUrxZr½
C11: 6- x`gdj | G11: 25- vU; dksbZ Hkh izdkj NqV feyrh gSa tks /kkjk 10¼13&,½ o 10¼13½ds vUrxZr vkrh gks rks ;gk fy[ks ,oa vU; dj eqDr HkRrk ;gkW fy[ksaA
C12: 7- x`g _.k dh ewy fdLr ;gkW fy[kuh gSaA tks NwV ysuh gSaA | G12: 26- /kkjk 80CCC - isa'ku Iyku gsrq va'knku
C13: 8- x`g _.k fdLr ij C;kt tks NwV ysuk gS] ;gkW fy[ksA | G13: 27- vU; tek jkf'k ¼/kkjk 80 lh ds vUrxZr½ o E;qpvy QaM
C14: 9- thou chek izhfe;e LIC | G14: 28- /kkjk 80CCD(1B) -uohu isa'ku ;kstuk esa vfrfjDr va'knku ¼vf/kdre :- 50]000½ | I14: 50000
C15: 10- ih-,y-vkbZ- (PLI) | G15: 29- /kkjk 80D - fpfdRlk chek izhfe;e
C16: 11- V;w'ku Qhl (Tution Fees) | G16: 30- /kkjk 80DD - fodykax vkfJrksa ds fpfdRlk mipkj
C17: 12- ;w- ,y- vkbZ- ih-@okf"kZd Iyku | G17: 31- /kkjk 80DDB - fof'k"V jksxksa ds mipkj gsrq dVkSrh ¼vf/kdre 40000 :½
C18: 13- jk"Vªh; cpr i= (NSC) | G18: 32- /kkjk 80E - mPp f'k{kk gsrq fy, _.k dk C;kt ¼/kkjk 80E½
C19: 14- jk"Vªh; cpr i= ij vnr C;kt | G19: 33- /kkjk 80G - /kekZFkZ laLFkkvksa vkfn dks fn;s nku ¼d Js.kh 100% ,oa [k Js.kh 50%½
C20: 15- yksd Hkfo"; fuf/k (PPF) | G20: 34- /kkjk 80U - LFkkbZ :i ls 'kkjhfjd vleFkZrrk
C21: 16- jk"Vªh; cpr Ldhe (NSS) | G21: 35- /kkjk 80TTA - cpr [kkrs ij vf/kdre C;kt :- 10]000 194(IA) | I21: 1000
C22: 17- lqdU;k le`f) ;kstuk (SSY) | G22: 36- /kkjk 80 GGA - vuqeksfnr oSKkfud]lkekftd]xzkeh.k fodkl vkfn gsrq fn;k x;k nku
C23: 18- Bonds ls C;kt | G23: 37- ,QMh vkfn vU; tek jkf'k ij izkIr dqy C;kt ¼ihih,Q dks NksM+dj½
C24: 19- vU; vk; % | G24: 38- jkgr /kkjk 89 ds rgr ¼ vxj NwV ysuh gS rks ;gkW fy[ksA½ | I24: 0

Sheet GA55
B1: =IF(AND('Master Data'!D4=""),"",CONCATENATE("Office Name :- ",PROPER('Master Data'!D4))) -> Office Name :- Principal, H.S.S.Girls Pichhore (3932003025) M.P.
A2: Employee Name :- | D2: =UPPER(IF('Master Data'!D6="","",'Master Data'!D6)) -> HEERALAL JAT | I2: Designation :- | M2: =UPPER(IF('Master Data'!H6="","",'Master Data'!H6)) -> MIDDLE TEACHER | Q2: Posting Place :- | U2: =UPPER(IF('Master Data'!D8="","",'Master Data'!D8)) -> GHS HARIJAN BASTI PICHHORE | AB2: osru Mªk ekufp=
A3: PAN No. :- | C3: =UPPER(IF('Master Data'!D12="","",'Master Data'!D12)) -> ABCDE1234H | F3: E. ID | G3: =IF(AND('Master Data'!D10=""),"",'Master Data'!D10) -> 390263384 | J3: GPF | K3: =IF(AND('Master Data'!D14=""),"",'Master Data'!D14) -> 11 | O3: PRAN No. :- | R3: =IF(AND('Master Data'!D16=""),"",'Master Data'!D16) -> 110161963331 | W3: Bank A/C. | AA3: =IF(AND('Master Data'!H16=""),"",'Master Data'!H16) -> 121212121212121
A4: Details of Payment | N4: Details of Deduction | AA4: Net Salary | AB4: Voucher N0. | AC4: Voucher Date
A5: S.N. | B5: Month | C5: Basic Pay | D5: Dearness Pay | E5: DA | F5: Conv. All. For. Phy. Cha/ Conv. All. | G5: HRA | H5: CCA | I5: Interim Relief | J5: Other Paymen | K5: PP on pay | L5: Fixed T.A./ Sumptuary All. | M5: Gross Salary | N5: S.I. | O5: GPF | P5: NPS | Q5: GIS | R5: Recovery | S5: Relief Fund | T5: Income Tax/ Profess.Tax/ FBF | U5: GIS (All India) | V5: HRR | W5: Court Deduction | X5: Other | Y5: Other AG Deduction | Z5: Total Deduction
A6: 1 | B6: 2020-03-01 | C6: 35800 | E6: 1234 | G6: 398 | H6: 200 | M6: =IF(AND(B6=""),"",SUM(C6:L6)) -> 37632 | P6: =IF(AND('GA55 '!$B6=""),"",ROUND((C6+D6+E6)*0.1,0)) -> 3703 | Q6: 200 | S6: 1000 | T6: 208 | Z6: =IF(AND(B6="",M6=""),"",SUM(N6:Y6)) -> 5111 | AA6: =IF(AND(Z6="",M6=""),"",SUM(M6-Z6)) -> 32521
A7: 2 | B7: 2020-04-01 | C7: =IF(AND('GA55 '!$B7=""),"",'GA55 '!C$6) -> 35800 | D7: =IF(AND('Master Data'!$I$23='Master Data'!$Y$19),0,IF(AND('GA55 '!$B7=""),"",'GA55 '!D$6)) -> 0 | E7: =IF(AND('Master Data'!$I$23='Master Data'!$Y$19),0,IF(AND('GA55 '!$B7=""),"",'GA55 '!E$6)) -> 1234 | F7: =IF(AND('Master Data'!$I$23='Master Data'!$Y$19),"",IF(AND('GA55 '!$B7=""),"",'GA55 '!F$6)) -> 0 | G7: =IF(AND('Master Data'!$I$23='Master Data'!$Y$19),"",IF(AND('GA55 '!$B7=""),"",'GA55 '!G$6)) -> 398 | H7: =IF(AND('Master Data'!$I$23='Master Data'!$Y$19),"",IF(AND('GA55 '!$B7=""),"",'GA55 '!H$6)) -> 200 | I7: =IF(AND('Master Data'!$I$23='Master Data'!$Y$19),"",IF(AND('GA55 '!$B7=""),"",'GA55 '!I$6)) -> 0 | J7: =IF(AND('Master Data'!$I$23='Master Data'!$Y$19),"",IF(AND('GA55 '!$B7=""),"",'GA55 '!J$6)) -> 0 | K7: =IF(AND('Master Data'!$I$23='Master Data'!$Y$19),"",IF(AND('GA55 '!$B7=""),"",'GA55 '!K$6)) -> 0 | L7: =IF(AND('Master Data'!$I$23='Master Data'!$Y$19),"",IF(AND('GA55 '!$B7=""),"",'GA55 '!L$6)) -> 0 | M7: =IF(AND(B7=""),"",SUM(C7:L7)) -> 37632 | N7: =IF(AND('Master Data'!$I$23='Master Data'!$Y$19),"",IF(AND('GA55 '!$B7=""),"",'GA55 '!N$6)) -> 0 | O7: =IF(AND('Master Data'!$I$23='Master Data'!$Y$19),"",IF(AND('GA55 '!$B7=""),"",'GA55 '!O$6)) -> 0 | P7: =IF(AND('GA55 '!$B7=""),"",ROUND((C7+D7+E7)*0.1,0)) -> 3703 | Q7: =IF(AND('Master Data'!$I$23='Master Data'!$Y$19),"",IF(AND('GA55 '!$B7=""),"",'GA55 '!Q$6)) -> 200 | R7: =IF(AND('Master Data'!$I$23='Master Data'!$Y$19),"",IF(AND('GA55 '!$B7=""),"",'GA55 '!R$6)) -> 0 | S7: =IF(AND('Master Data'!$I$23='Master Data'!$Y$19),"",IF(AND('GA55 '!$B7=""),"",'GA55 '!S$6)) -> 1000 | T7: =IF(AND('Master Data'!$I$23='Master Data'!$Y$19),"",IF(AND('GA55 '!$B7=""),"",'GA55 '!T$6)) -> 208 | U7: =IF(AND('Master Data'!$I$23='Master Data'!$Y$19),"",IF(AND('GA55 '!$B7=""),"",'GA55 '!U$6)) -> 0 | V7: =IF(AND('Master Data'!$I$23='Master Data'!$Y$19),"",IF(AND('GA55 '!$B7=""),"",'GA55 '!V$6)) -> 0 | W7: =IF(AND('Master Data'!$I$23='Master Data'!$Y$19),"",IF(AND('GA55 '!$B7=""),"",'GA55 '!W$6)) -> 0 | X7: =IF(AND('Master Data'!$I$23='Master Data'!$Y$19),"",IF(AND('GA55 '!$B7=""),"",'GA55 '!X$6)) -> 0 | Y7: =IF(AND('Master Data'!$I$23='Master Data'!$Y$19),"",IF(AND('GA55 '!$B7=""),"",'GA55 '!Y$6)) -> 0 | Z7: =IF(AND(B7="",M7=""),"",SUM(N7:Y7)) -> 5111 | AA7: =IF(AND(Z7="",M7=""),"",SUM(M7-Z7)) -> 32521
A8: 3 | B8: 2020-05-01 | C8: =IF(AND('GA55 '!$B8=""),"",'GA55 '!C$6) -> 35800 | D8: =IF(AND('Master Data'!$I$23='Master Data'!$Y$19),0,IF(AND('GA55 '!$B8=""),"",'GA55 '!D$6)) -> 0 | E8: =IF(AND('Master Data'!$I$23='Master Data'!$Y$19),0,IF(AND('GA55 '!$B8=""),"",'GA55 '!E$6)) -> 1234 | F8: =IF(AND('Master Data'!$I$23='Master Data'!$Y$19),"",IF(AND('GA55 '!$B8=""),"",'GA55 '!F$6)) -> 0 | G8: =IF(AND('Master Data'!$I$23='Master Data'!$Y$19),"",IF(AND('GA55 '!$B8=""),"",'GA55 '!G$6)) -> 398 | H8: =IF(AND('Master Data'!$I$23='Master Data'!$Y$19),"",IF(AND('GA55 '!$B8=""),"",'GA55 '!H$6)) -> 200 | I8: =IF(AND('Master Data'!$I$23='Master Data'!$Y$19),"",IF(AND('GA55 '!$B8=""),"",'GA55 '!I$6)) -> 0 | J8: =IF(AND('Master Data'!$I$23='Master Data'!$Y$19),"",IF(AND('GA55 '!$B8=""),"",'GA55 '!J$6)) -> 0 | K8: =IF(AND('Master Data'!$I$23='Master Data'!$Y$19),"",IF(AND('GA55 '!$B8=""),"",'GA55 '!K$6)) -> 0 | L8: =IF(AND('Master Data'!$I$23='Master Data'!$Y$19),"",IF(AND('GA55 '!$B8=""),"",'GA55 '!L$6)) -> 0 | M8: =IF(AND(B8=""),"",SUM(C8:L8)) -> 37632 | N8: =IF(AND('Master Data'!$I$23='Master Data'!$Y$19),"",IF(AND('GA55 '!$B8=""),"",'GA55 '!N$6)) -> 0 | O8: =IF(AND('Master Data'!$I$23='Master Data'!$Y$19),"",IF(AND('GA55 '!$B8=""),"",'GA55 '!O$6)) -> 0 | P8: =IF(AND('GA55 '!$B8=""),"",ROUND((C8+D8+E8)*0.1,0)) -> 3703 | Q8: =IF(AND('Master Data'!$I$23='Master Data'!$Y$19),"",IF(AND('GA55 '!$B8=""),"",'GA55 '!Q$6)) -> 200 | R8: =IF(AND('Master Data'!$I$23='Master Data'!$Y$19),"",IF(AND('GA55 '!$B8=""),"",'GA55 '!R$6)) -> 0 | S8: =IF(AND('Master Data'!$I$23='Master Data'!$Y$19),"",IF(AND('GA55 '!$B8=""),"",'GA55 '!S$6)) -> 1000 | T8: =IF(AND('Master Data'!$I$23='Master Data'!$Y$19),"",IF(AND('GA55 '!$B8=""),"",'GA55 '!T$6)) -> 208 | U8: =IF(AND('Master Data'!$I$23='Master Data'!$Y$19),"",IF(AND('GA55 '!$B8=""),"",'GA55 '!U$6)) -> 0 | V8: =IF(AND('Master Data'!$I$23='Master Data'!$Y$19),"",IF(AND('GA55 '!$B8=""),"",'GA55 '!V$6)) -> 0 | W8: =IF(AND('Master Data'!$I$23='Master Data'!$Y$19),"",IF(AND('GA55 '!$B8=""),"",'GA55 '!W$6)) -> 0 | X8: =IF(AND('Master Data'!$I$23='Master Data'!$Y$19),"",IF(AND('GA55 '!$B8=""),"",'GA55 '!X$6)) -> 0 | Y8: =IF(AND('Master Data'!$I$23='Master Data'!$Y$19),"",IF(AND('GA55 '!$B8=""),"",'GA55 '!Y$6)) -> 0 | Z8: 5111 | AA8: 32521
A9: 4 | B9: 2020-06-01 | C9: =IF(AND('GA55 '!$B9=""),"",'GA55 '!C$6) -> 35800 | D9: =IF(AND('Master Data'!$I$23='Master Data'!$Y$19),0,IF(AND('GA55 '!$B9=""),"",'GA55 '!D$6)) -> 0 | E9: =IF(AND('Master Data'!$I$23='Master Data'!$Y$19),0,IF(AND('GA55 '!$B9=""),"",'GA55 '!E$6)) -> 1234 | F9: =IF(AND('Master Data'!$I$23='Master Data'!$Y$19),"",IF(AND('GA55 '!$B9=""),"",'GA55 '!F$6)) -> 0 | G9: =IF(AND('Master Data'!$I$23='Master Data'!$Y$19),"",IF(AND('GA55 '!$B9=""),"",'GA55 '!G$6)) -> 398 | H9: =IF(AND('Master Data'!$I$23='Master Data'!$Y$19),"",IF(AND('GA55 '!$B9=""),"",'GA55 '!H$6)) -> 200 | I9: =IF(AND('Master Data'!$I$23='Master Data'!$Y$19),"",IF(AND('GA55 '!$B9=""),"",'GA55 '!I$6)) -> 0 | J9: =IF(AND('Master Data'!$I$23='Master Data'!$Y$19),"",IF(AND('GA55 '!$B9=""),"",'GA55 '!J$6)) -> 0 | K9: =IF(AND('Master Data'!$I$23='Master Data'!$Y$19),"",IF(AND('GA55 '!$B9=""),"",'GA55 '!K$6)) -> 0 | L9: =IF(AND('Master Data'!$I$23='Master Data'!$Y$19),"",IF(AND('GA55 '!$B9=""),"",'GA55 '!L$6)) -> 0 | M9: 37632 | N9: =IF(AND('Master Data'!$I$23='Master Data'!$Y$19),"",IF(AND('GA55 '!$B9=""),"",'GA55 '!N$6)) -> 0 | O9: =IF(AND('Master Data'!$I$23='Master Data'!$Y$19),"",IF(AND('GA55 '!$B9=""),"",'GA55 '!O$6)) -> 0 | P9: =IF(AND('GA55 '!$B9=""),"",ROUND((C9+D9+E9)*0.1,0)) -> 3703 | Q9: =IF(AND('Master Data'!$I$23='Master Data'!$Y$19),"",IF(AND('GA55 '!$B9=""),"",'GA55 '!Q$6)) -> 200 | R9: =IF(AND('Master Data'!$I$23='Master Data'!$Y$19),"",IF(AND('GA55 '!$B9=""),"",'GA55 '!R$6)) -> 0 | S9: =IF(AND('Master Data'!$I$23='Master Data'!$Y$19),"",IF(AND('GA55 '!$B9=""),"",'GA55 '!S$6)) -> 1000 | T9: =IF(AND('Master Data'!$I$23='Master Data'!$Y$19),"",IF(AND('GA55 '!$B9=""),"",'GA55 '!T$6)) -> 208 | U9: =IF(AND('Master Data'!$I$23='Master Data'!$Y$19),"",IF(AND('GA55 '!$B9=""),"",'GA55 '!U$6)) -> 0 | V9: =IF(AND('Master Data'!$I$23='Master Data'!$Y$19),"",IF(AND('GA55 '!$B9=""),"",'GA55 '!V$6)) -> 0 | W9: =IF(AND('Master Data'!$I$23='Master Data'!$Y$19),"",IF(AND('GA55 '!$B9=""),"",'GA55 '!W$6)) -> 0 | X9: =IF(AND('Master Data'!$I$23='Master Data'!$Y$19),"",IF(AND('GA55 '!$B9=""),"",'GA55 '!X$6)) -> 0 | Y9: =IF(AND('Master Data'!$I$23='Master Data'!$Y$19),"",IF(AND('GA55 '!$B9=""),"",'GA55 '!Y$6)) -> 0 | Z9: 5111 | AA9: 32521
A10: 5 | B10: 2020-07-01 | C10: =IF(AND('GA55 '!$B10=""),"",'GA55 '!C$6) -> 35800 | D10: =IF(AND('Master Data'!$I$23='Master Data'!$Y$19),0,IF(AND('GA55 '!$B10=""),"",'GA55 '!D$6)) -> 0 | E10: =IF(AND('Master Data'!$I$23='Master Data'!$Y$19),0,IF(AND('GA55 '!$B10=""),"",'GA55 '!E$6)) -> 1234 | F10: =IF(AND('Master Data'!$I$23='Master Data'!$Y$19),"",IF(AND('GA55 '!$B10=""),"",'GA55 '!F$6)) -> 0 | G10: =IF(AND('Master Data'!$I$23='Master Data'!$Y$19),"",IF(AND('GA55 '!$B10=""),"",'GA55 '!G$6)) -> 398 | H10: =IF(AND('Master Data'!$I$23='Master Data'!$Y$19),"",IF(AND('GA55 '!$B10=""),"",'GA55 '!H$6)) -> 200 | I10: =IF(AND('Master Data'!$I$23='Master Data'!$Y$19),"",IF(AND('GA55 '!$B10=""),"",'GA55 '!I$6)) -> 0 | J10: =IF(AND('Master Data'!$I$23='Master Data'!$Y$19),"",IF(AND('GA55 '!$B10=""),"",'GA55 '!J$6)) -> 0 | K10: =IF(AND('Master Data'!$I$23='Master Data'!$Y$19),"",IF(AND('GA55 '!$B10=""),"",'GA55 '!K$6)) -> 0 | L10: =IF(AND('Master Data'!$I$23='Master Data'!$Y$19),"",IF(AND('GA55 '!$B10=""),"",'GA55 '!L$6)) -> 0 | M10: 37632 | N10: =IF(AND('Master Data'!$I$23='Master Data'!$Y$19),"",IF(AND('GA55 '!$B10=""),"",'GA55 '!N$6)) -> 0 | O10: =IF(AND('Master Data'!$I$23='Master Data'!$Y$19),"",IF(AND('GA55 '!$B10=""),"",'GA55 '!O$6)) -> 0 | P10: =IF(AND('GA55 '!$B10=""),"",ROUND((C10+D10+E10)*0.1,0)) -> 3703 | Q10: =IF(AND('Master Data'!$I$23='Master Data'!$Y$19),"",IF(AND('GA55 '!$B10=""),"",'GA55 '!Q$6)) -> 200 | R10: =IF(AND('Master Data'!$I$23='Master Data'!$Y$19),"",IF(AND('GA55 '!$B10=""),"",'GA55 '!R$6)) -> 0 | S10: =IF(AND('Master Data'!$I$23='Master Data'!$Y$19),"",IF(AND('GA55 '!$B10=""),"",'GA55 '!S$6)) -> 1000 | T10: =IF(AND('Master Data'!$I$23='Master Data'!$Y$19),"",IF(AND('GA55 '!$B10=""),"",'GA55 '!T$6)) -> 208 | U10: =IF(AND('Master Data'!$I$23='Master Data'!$Y$19),"",IF(AND('GA55 '!$B10=""),"",'GA55 '!U$6)) -> 0 | V10: =IF(AND('Master Data'!$I$23='Master Data'!$Y$19),"",IF(AND('GA55 '!$B10=""),"",'GA55 '!V$6)) -> 0 | W10: =IF(AND('Master Data'!$I$23='Master Data'!$Y$19),"",IF(AND('GA55 '!$B10=""),"",'GA55 '!W$6)) -> 0 | X10: =IF(AND('Master Data'!$I$23='Master Data'!$Y$19),"",IF(AND('GA55 '!$B10=""),"",'GA55 '!X$6)) -> 0 | Y10: =IF(AND('Master Data'!$I$23='Master Data'!$Y$19),"",IF(AND('GA55 '!$B10=""),"",'GA55 '!Y$6)) -> 0 | Z10: 5111 | AA10: 32521
A11: 6 | B11: 2020-08-01 | C11: =IF(AND('GA55 '!$B11=""),"",'GA55 '!C$6) -> 35800 | D11: =IF(AND('Master Data'!$I$23='Master Data'!$Y$19),0,IF(AND('GA55 '!$B11=""),"",'GA55 '!D$6)) -> 0 | E11: =IF(AND('Master Data'!$I$23='Master Data'!$Y$19),0,IF(AND('GA55 '!$B11=""),"",'GA55 '!E$6)) -> 1234 | F11: =IF(AND('Master Data'!$I$23='Master Data'!$Y$19),"",IF(AND('GA55 '!$B11=""),"",'GA55 '!F$6)) -> 0 | G11: =IF(AND('Master Data'!$I$23='Master Data'!$Y$19),"",IF(AND('GA55 '!$B11=""),"",'GA55 '!G$6)) -> 398 | H11: =IF(AND('Master Data'!$I$23='Master Data'!$Y$19),"",IF(AND('GA55 '!$B11=""),"",'GA55 '!H$6)) -> 200 | I11: =IF(AND('Master Data'!$I$23='Master Data'!$Y$19),"",IF(AND('GA55 '!$B11=""),"",'GA55 '!I$6)) -> 0 | J11: =IF(AND('Master Data'!$I$23='Master Data'!$Y$19),"",IF(AND('GA55 '!$B11=""),"",'GA55 '!J$6)) -> 0 | K11: =IF(AND('Master Data'!$I$23='Master Data'!$Y$19),"",IF(AND('GA55 '!$B11=""),"",'GA55 '!K$6)) -> 0 | L11: =IF(AND('Master Data'!$I$23='Master Data'!$Y$19),"",IF(AND('GA55 '!$B11=""),"",'GA55 '!L$6)) -> 0 | M11: 37632 | N11: =IF(AND('Master Data'!$I$23='Master Data'!$Y$19),"",IF(AND('GA55 '!$B11=""),"",'GA55 '!N$6)) -> 0 | O11: =IF(AND('Master Data'!$I$23='Master Data'!$Y$19),"",IF(AND('GA55 '!$B11=""),"",'GA55 '!O$6)) -> 0 | P11: =IF(AND('GA55 '!$B11=""),"",ROUND((C11+D11+E11)*0.1,0)) -> 3703 | Q11: =IF(AND('Master Data'!$I$23='Master Data'!$Y$19),"",IF(AND('GA55 '!$B11=""),"",'GA55 '!Q$6)) -> 200 | R11: =IF(AND('Master Data'!$I$23='Master Data'!$Y$19),"",IF(AND('GA55 '!$B11=""),"",'GA55 '!R$6)) -> 0 | S11: =IF(AND('Master Data'!$I$23='Master Data'!$Y$19),"",IF(AND('GA55 '!$B11=""),"",'GA55 '!S$6)) -> 1000 | T11: =IF(AND('Master Data'!$I$23='Master Data'!$Y$19),"",IF(AND('GA55 '!$B11=""),"",'GA55 '!T$6)) -> 208 | U11: =IF(AND('Master Data'!$I$23='Master Data'!$Y$19),"",IF(AND('GA55 '!$B11=""),"",'GA55 '!U$6)) -> 0 | V11: =IF(AND('Master Data'!$I$23='Master Data'!$Y$19),"",IF(AND('GA55 '!$B11=""),"",'GA55 '!V$6)) -> 0 | W11: =IF(AND('Master Data'!$I$23='Master Data'!$Y$19),"",IF(AND('GA55 '!$B11=""),"",'GA55 '!W$6)) -> 0 | X11: =IF(AND('Master Data'!$I$23='Master Data'!$Y$19),"",IF(AND('GA55 '!$B11=""),"",'GA55 '!X$6)) -> 0 | Y11: =IF(AND('Master Data'!$I$23='Master Data'!$Y$19),"",IF(AND('GA55 '!$B11=""),"",'GA55 '!Y$6)) -> 0 | Z11: 5111 | AA11: 32521
A12: 7 | B12: 2020-09-01 | C12: =IF(AND('GA55 '!$B12=""),"",'GA55 '!C$6) -> 35800 | D12: =IF(AND('Master Data'!$I$23='Master Data'!$Y$19),0,IF(AND('GA55 '!$B12=""),"",'GA55 '!D$6)) -> 0 | E12: =IF(AND('Master Data'!$I$23='Master Data'!$Y$19),0,IF(AND('GA55 '!$B12=""),"",'GA55 '!E$6)) -> 1234 | F12: =IF(AND('Master Data'!$I$23='Master Data'!$Y$19),"",IF(AND('GA55 '!$B12=""),"",'GA55 '!F$6)) -> 0 | G12: =IF(AND('Master Data'!$I$23='Master Data'!$Y$19),"",IF(AND('GA55 '!$B12=""),"",'GA55 '!G$6)) -> 398 | H12: =IF(AND('Master Data'!$I$23='Master Data'!$Y$19),"",IF(AND('GA55 '!$B12=""),"",'GA55 '!H$6)) -> 200 | I12: =IF(AND('Master Data'!$I$23='Master Data'!$Y$19),"",IF(AND('GA55 '!$B12=""),"",'GA55 '!I$6)) -> 0 | J12: =IF(AND('Master Data'!$I$23='Master Data'!$Y$19),"",IF(AND('GA55 '!$B12=""),"",'GA55 '!J$6)) -> 0 | K12: =IF(AND('Master Data'!$I$23='Master Data'!$Y$19),"",IF(AND('GA55 '!$B12=""),"",'GA55 '!K$6)) -> 0 | L12: =IF(AND('Master Data'!$I$23='Master Data'!$Y$19),"",IF(AND('GA55 '!$B12=""),"",'GA55 '!L$6)) -> 0 | M12: 37632 | N12: =IF(AND('Master Data'!$I$23='Master Data'!$Y$19),"",IF(AND('GA55 '!$B12=""),"",'GA55 '!N$6)) -> 0 | O12: =IF(AND('Master Data'!$I$23='Master Data'!$Y$19),"",IF(AND('GA55 '!$B12=""),"",'GA55 '!O$6)) -> 0 | P12: =IF(AND('GA55 '!$B12=""),"",ROUND((C12+D12+E12)*0.1,0)) -> 3703 | Q12: =IF(AND('Master Data'!$I$23='Master Data'!$Y$19),"",IF(AND('GA55 '!$B12=""),"",'GA55 '!Q$6)) -> 200 | R12: =IF(AND('Master Data'!$I$23='Master Data'!$Y$19),"",IF(AND('GA55 '!$B12=""),"",'GA55 '!R$6)) -> 0 | S12: =IF(AND('Master Data'!$I$23='Master Data'!$Y$19),"",IF(AND('GA55 '!$B12=""),"",'GA55 '!S$6)) -> 1000 | T12: =IF(AND('Master Data'!$I$23='Master Data'!$Y$19),"",IF(AND('GA55 '!$B12=""),"",'GA55 '!T$6)) -> 208 | U12: =IF(AND('Master Data'!$I$23='Master Data'!$Y$19),"",IF(AND('GA55 '!$B12=""),"",'GA55 '!U$6)) -> 0 | V12: =IF(AND('Master Data'!$I$23='Master Data'!$Y$19),"",IF(AND('GA55 '!$B12=""),"",'GA55 '!V$6)) -> 0 | W12: =IF(AND('Master Data'!$I$23='Master Data'!$Y$19),"",IF(AND('GA55 '!$B12=""),"",'GA55 '!W$6)) -> 0 | X12: =IF(AND('Master Data'!$I$23='Master Data'!$Y$19),"",IF(AND('GA55 '!$B12=""),"",'GA55 '!X$6)) -> 0 | Y12: =IF(AND('Master Data'!$I$23='Master Data'!$Y$19),"",IF(AND('GA55 '!$B12=""),"",'GA55 '!Y$6)) -> 0 | Z12: 5111 | AA12: 32521
A13: 8 | B13: 2020-10-01 | C13: =IF(AND('GA55 '!$B13=""),"",'GA55 '!C$6) -> 35800 | D13: =IF(AND('Master Data'!$I$23='Master Data'!$Y$19),0,IF(AND('GA55 '!$B13=""),"",'GA55 '!D$6)) -> 0 | E13: =IF(AND('Master Data'!$I$23='Master Data'!$Y$19),0,IF(AND('GA55 '!$B13=""),"",'GA55 '!E$6)) -> 1234 | F13: =IF(AND('Master Data'!$I$23='Master Data'!$Y$19),"",IF(AND('GA55 '!$B13=""),"",'GA55 '!F$6)) -> 0 | G13: =IF(AND('Master Data'!$I$23='Master Data'!$Y$19),"",IF(AND('GA55 '!$B13=""),"",'GA55 '!G$6)) -> 398 | H13: =IF(AND('Master Data'!$I$23='Master Data'!$Y$19),"",IF(AND('GA55 '!$B13=""),"",'GA55 '!H$6)) -> 200 | I13: =IF(AND('Master Data'!$I$23='Master Data'!$Y$19),"",IF(AND('GA55 '!$B13=""),"",'GA55 '!I$6)) -> 0 | J13: =IF(AND('Master Data'!$I$23='Master Data'!$Y$19),"",IF(AND('GA55 '!$B13=""),"",'GA55 '!J$6)) -> 0 | K13: =IF(AND('Master Data'!$I$23='Master Data'!$Y$19),"",IF(AND('GA55 '!$B13=""),"",'GA55 '!K$6)) -> 0 | L13: =IF(AND('Master Data'!$I$23='Master Data'!$Y$19),"",IF(AND('GA55 '!$B13=""),"",'GA55 '!L$6)) -> 0 | M13: 37632 | N13: =IF(AND('Master Data'!$I$23='Master Data'!$Y$19),"",IF(AND('GA55 '!$B13=""),"",'GA55 '!N$6)) -> 0 | O13: =IF(AND('Master Data'!$I$23='Master Data'!$Y$19),"",IF(AND('GA55 '!$B13=""),"",'GA55 '!O$6)) -> 0 | P13: =IF(AND('GA55 '!$B13=""),"",ROUND((C13+D13+E13)*0.1,0)) -> 3703 | Q13: =IF(AND('Master Data'!$I$23='Master Data'!$Y$19),"",IF(AND('GA55 '!$B13=""),"",'GA55 '!Q$6)) -> 200 | R13: =IF(AND('Master Data'!$I$23='Master Data'!$Y$19),"",IF(AND('GA55 '!$B13=""),"",'GA55 '!R$6)) -> 0 | S13: =IF(AND('Master Data'!$I$23='Master Data'!$Y$19),"",IF(AND('GA55 '!$B13=""),"",'GA55 '!S$6)) -> 1000 | T13: =IF(AND('Master Data'!$I$23='Master Data'!$Y$19),"",IF(AND('GA55 '!$B13=""),"",'GA55 '!T$6)) -> 208 | U13: =IF(AND('Master Data'!$I$23='Master Data'!$Y$19),"",IF(AND('GA55 '!$B13=""),"",'GA55 '!U$6)) -> 0 | V13: =IF(AND('Master Data'!$I$23='Master Data'!$Y$19),"",IF(AND('GA55 '!$B13=""),"",'GA55 '!V$6)) -> 0 | W13: =IF(AND('Master Data'!$I$23='Master Data'!$Y$19),"",IF(AND('GA55 '!$B13=""),"",'GA55 '!W$6)) -> 0 | X13: =IF(AND('Master Data'!$I$23='Master Data'!$Y$19),"",IF(AND('GA55 '!$B13=""),"",'GA55 '!X$6)) -> 0 | Y13: =IF(AND('Master Data'!$I$23='Master Data'!$Y$19),"",IF(AND('GA55 '!$B13=""),"",'GA55 '!Y$6)) -> 0 | Z13: 5111 | AA13: 32521
A14: 9 | B14: 2020-11-01 | C14: =IF(AND('GA55 '!$B14=""),"",'GA55 '!C$6) -> 35800 | D14: =IF(AND('Master Data'!$I$23='Master Data'!$Y$19),0,IF(AND('GA55 '!$B14=""),"",'GA55 '!D$6)) -> 0 | E14: =IF(AND('Master Data'!$I$23='Master Data'!$Y$19),0,IF(AND('GA55 '!$B14=""),"",'GA55 '!E$6)) -> 1234 | F14: =IF(AND('Master Data'!$I$23='Master Data'!$Y$19),"",IF(AND('GA55 '!$B14=""),"",'GA55 '!F$6)) -> 0 | G14: =IF(AND('Master Data'!$I$23='Master Data'!$Y$19),"",IF(AND('GA55 '!$B14=""),"",'GA55 '!G$6)) -> 398 | H14: =IF(AND('Master Data'!$I$23='Master Data'!$Y$19),"",IF(AND('GA55 '!$B14=""),"",'GA55 '!H$6)) -> 200 | I14: =IF(AND('Master Data'!$I$23='Master Data'!$Y$19),"",IF(AND('GA55 '!$B14=""),"",'GA55 '!I$6)) -> 0 | J14: =IF(AND('Master Data'!$I$23='Master Data'!$Y$19),"",IF(AND('GA55 '!$B14=""),"",'GA55 '!J$6)) -> 0 | K14: =IF(AND('Master Data'!$I$23='Master Data'!$Y$19),"",IF(AND('GA55 '!$B14=""),"",'GA55 '!K$6)) -> 0 | L14: =IF(AND('Master Data'!$I$23='Master Data'!$Y$19),"",IF(AND('GA55 '!$B14=""),"",'GA55 '!L$6)) -> 0 | M14: 37632 | N14: =IF(AND('Master Data'!$I$23='Master Data'!$Y$19),"",IF(AND('GA55 '!$B14=""),"",'GA55 '!N$6)) -> 0 | O14: =IF(AND('Master Data'!$I$23='Master Data'!$Y$19),"",IF(AND('GA55 '!$B14=""),"",'GA55 '!O$6)) -> 0 | P14: =IF(AND('GA55 '!$B14=""),"",ROUND((C14+D14+E14)*0.1,0)) -> 3703 | Q14: =IF(AND('Master Data'!$I$23='Master Data'!$Y$19),"",IF(AND('GA55 '!$B14=""),"",'GA55 '!Q$6)) -> 200 | R14: =IF(AND('Master Data'!$I$23='Master Data'!$Y$19),"",IF(AND('GA55 '!$B14=""),"",'GA55 '!R$6)) -> 0 | S14: =IF(AND('Master Data'!$I$23='Master Data'!$Y$19),"",IF(AND('GA55 '!$B14=""),"",'GA55 '!S$6)) -> 1000 | T14: =IF(AND('Master Data'!$I$23='Master Data'!$Y$19),"",IF(AND('GA55 '!$B14=""),"",'GA55 '!T$6)) -> 208 | U14: =IF(AND('Master Data'!$I$23='Master Data'!$Y$19),"",IF(AND('GA55 '!$B14=""),"",'GA55 '!U$6)) -> 0 | V14: =IF(AND('Master Data'!$I$23='Master Data'!$Y$19),"",IF(AND('GA55 '!$B14=""),"",'GA55 '!V$6)) -> 0 | W14: =IF(AND('Master Data'!$I$23='Master Data'!$Y$19),"",IF(AND('GA55 '!$B14=""),"",'GA55 '!W$6)) -> 0 | X14: =IF(AND('Master Data'!$I$23='Master Data'!$Y$19),"",IF(AND('GA55 '!$B14=""),"",'GA55 '!X$6)) -> 0 | Y14: =IF(AND('Master Data'!$I$23='Master Data'!$Y$19),"",IF(AND('GA55 '!$B14=""),"",'GA55 '!Y$6)) -> 0 | Z14: 5111 | AA14: 32521
A15: 10 | B15: 2020-12-01 | C15: =IF(AND('GA55 '!$B15=""),"",'GA55 '!C$6) -> 35800 | D15: =IF(AND('Master Data'!$I$23='Master Data'!$Y$19),0,IF(AND('GA55 '!$B15=""),"",'GA55 '!D$6)) -> 0 | E15: =IF(AND('Master Data'!$I$23='Master Data'!$Y$19),0,IF(AND('GA55 '!$B15=""),"",'GA55 '!E$6)) -> 1234 | F15: =IF(AND('Master Data'!$I$23='Master Data'!$Y$19),"",IF(AND('GA55 '!$B15=""),"",'GA55 '!F$6)) -> 0 | G15: =IF(AND('Master Data'!$I$23='Master Data'!$Y$19),"",IF(AND('GA55 '!$B15=""),"",'GA55 '!G$6)) -> 398 | H15: =IF(AND('Master Data'!$I$23='Master Data'!$Y$19),"",IF(AND('GA55 '!$B15=""),"",'GA55 '!H$6)) -> 200 | I15: =IF(AND('Master Data'!$I$23='Master Data'!$Y$19),"",IF(AND('GA55 '!$B15=""),"",'GA55 '!I$6)) -> 0 | J15: =IF(AND('Master Data'!$I$23='Master Data'!$Y$19),"",IF(AND('GA55 '!$B15=""),"",'GA55 '!J$6)) -> 0 | K15: =IF(AND('Master Data'!$I$23='Master Data'!$Y$19),"",IF(AND('GA55 '!$B15=""),"",'GA55 '!K$6)) -> 0 | L15: =IF(AND('Master Data'!$I$23='Master Data'!$Y$19),"",IF(AND('GA55 '!$B15=""),"",'GA55 '!L$6)) -> 0 | M15: 37632 | N15: =IF(AND('Master Data'!$I$23='Master Data'!$Y$19),"",IF(AND('GA55 '!$B15=""),"",'GA55 '!N$6)) -> 0 | O15: =IF(AND('Master Data'!$I$23='Master Data'!$Y$19),"",IF(AND('GA55 '!$B15=""),"",'GA55 '!O$6)) -> 0 | P15: =IF(AND('GA55 '!$B15=""),"",ROUND((C15+D15+E15)*0.1,0)) -> 3703 | Q15: =IF(AND('Master Data'!$I$23='Master Data'!$Y$19),"",IF(AND('GA55 '!$B15=""),"",'GA55 '!Q$6)) -> 200 | R15: =IF(AND('Master Data'!$I$23='Master Data'!$Y$19),"",IF(AND('GA55 '!$B15=""),"",'GA55 '!R$6)) -> 0 | S15: =IF(AND('Master Data'!$I$23='Master Data'!$Y$19),"",IF(AND('GA55 '!$B15=""),"",'GA55 '!S$6)) -> 1000 | T15: =IF(AND('Master Data'!$I$23='Master Data'!$Y$19),"",IF(AND('GA55 '!$B15=""),"",'GA55 '!T$6)) -> 208 | U15: =IF(AND('Master Data'!$I$23='Master Data'!$Y$19),"",IF(AND('GA55 '!$B15=""),"",'GA55 '!U$6)) -> 0 | V15: =IF(AND('Master Data'!$I$23='Master Data'!$Y$19),"",IF(AND('GA55 '!$B15=""),"",'GA55 '!V$6)) -> 0 | W15: =IF(AND('Master Data'!$I$23='Master Data'!$Y$19),"",IF(AND('GA55 '!$B15=""),"",'GA55 '!W$6)) -> 0 | X15: =IF(AND('Master Data'!$I$23='Master Data'!$Y$19),"",IF(AND('GA55 '!$B15=""),"",'GA55 '!X$6)) -> 0 | Y15: =IF(AND('Master Data'!$I$23='Master Data'!$Y$19),"",IF(AND('GA55 '!$B15=""),"",'GA55 '!Y$6)) -> 0 | Z15: 5111 | AA15: 32521
A16: 11 | B16: 2021-01-01 | C16: =IF(AND('GA55 '!$B16=""),"",'GA55 '!C$6) -> 35800 | D16: =IF(AND('Master Data'!$I$23='Master Data'!$Y$19),0,IF(AND('GA55 '!$B16=""),"",'GA55 '!D$6)) -> 0 | E16: =IF(AND('Master Data'!$I$23='Master Data'!$Y$19),0,IF(AND('GA55 '!$B16=""),"",'GA55 '!E$6)) -> 1234 | F16: =IF(AND('Master Data'!$I$23='Master Data'!$Y$19),"",IF(AND('GA55 '!$B16=""),"",'GA55 '!F$6)) -> 0 | G16: =IF(AND('Master Data'!$I$23='Master Data'!$Y$19),"",IF(AND('GA55 '!$B16=""),"",'GA55 '!G$6)) -> 398 | H16: =IF(AND('Master Data'!$I$23='Master Data'!$Y$19),"",IF(AND('GA55 '!$B16=""),"",'GA55 '!H$6)) -> 200 | I16: =IF(AND('Master Data'!$I$23='Master Data'!$Y$19),"",IF(AND('GA55 '!$B16=""),"",'GA55 '!I$6)) -> 0 | J16: =IF(AND('Master Data'!$I$23='Master Data'!$Y$19),"",IF(AND('GA55 '!$B16=""),"",'GA55 '!J$6)) -> 0 | K16: =IF(AND('Master Data'!$I$23='Master Data'!$Y$19),"",IF(AND('GA55 '!$B16=""),"",'GA55 '!K$6)) -> 0 | L16: =IF(AND('Master Data'!$I$23='Master Data'!$Y$19),"",IF(AND('GA55 '!$B16=""),"",'GA55 '!L$6)) -> 0 | M16: 37632 | N16: =IF(AND('Master Data'!$I$23='Master Data'!$Y$19),"",IF(AND('GA55 '!$B16=""),"",'GA55 '!N$6)) -> 0 | O16: =IF(AND('Master Data'!$I$23='Master Data'!$Y$19),"",IF(AND('GA55 '!$B16=""),"",'GA55 '!O$6)) -> 0 | P16: =IF(AND('GA55 '!$B16=""),"",ROUND((C16+D16+E16)*0.1,0)) -> 3703 | Q16: =IF(AND('Master Data'!$I$23='Master Data'!$Y$19),"",IF(AND('GA55 '!$B16=""),"",'GA55 '!Q$6)) -> 200 | R16: =IF(AND('Master Data'!$I$23='Master Data'!$Y$19),"",IF(AND('GA55 '!$B16=""),"",'GA55 '!R$6)) -> 0 | S16: =IF(AND('Master Data'!$I$23='Master Data'!$Y$19),"",IF(AND('GA55 '!$B16=""),"",'GA55 '!S$6)) -> 1000 | T16: =IF(AND('Master Data'!$I$23='Master Data'!$Y$19),"",IF(AND('GA55 '!$B16=""),"",'GA55 '!T$6)) -> 208 | U16: =IF(AND('Master Data'!$I$23='Master Data'!$Y$19),"",IF(AND('GA55 '!$B16=""),"",'GA55 '!U$6)) -> 0 | V16: =IF(AND('Master Data'!$I$23='Master Data'!$Y$19),"",IF(AND('GA55 '!$B16=""),"",'GA55 '!V$6)) -> 0 | W16: =IF(AND('Master Data'!$I$23='Master Data'!$Y$19),"",IF(AND('GA55 '!$B16=""),"",'GA55 '!W$6)) -> 0 | X16: =IF(AND('Master Data'!$I$23='Master Data'!$Y$19),"",IF(AND('GA55 '!$B16=""),"",'GA55 '!X$6)) -> 0 | Y16: =IF(AND('Master Data'!$I$23='Master Data'!$Y$19),"",IF(AND('GA55 '!$B16=""),"",'GA55 '!Y$6)) -> 0 | Z16: 5111 | AA16: 32521
A17: 12 | B17: 2021-02-01 | C17: =IF(AND('GA55 '!$B17=""),"",'GA55 '!C$6) -> 35800 | D17: =IF(AND('Master Data'!$I$23='Master Data'!$Y$19),0,IF(AND('GA55 '!$B17=""),"",'GA55 '!D$6)) -> 0 | E17: =IF(AND('Master Data'!$I$23='Master Data'!$Y$19),0,IF(AND('GA55 '!$B17=""),"",'GA55 '!E$6)) -> 1234 | F17: =IF(AND('Master Data'!$I$23='Master Data'!$Y$19),"",IF(AND('GA55 '!$B17=""),"",'GA55 '!F$6)) -> 0 | G17: =IF(AND('Master Data'!$I$23='Master Data'!$Y$19),"",IF(AND('GA55 '!$B17=""),"",'GA55 '!G$6)) -> 398 | H17: =IF(AND('Master Data'!$I$23='Master Data'!$Y$19),"",IF(AND('GA55 '!$B17=""),"",'GA55 '!H$6)) -> 200 | I17: =IF(AND('Master Data'!$I$23='Master Data'!$Y$19),"",IF(AND('GA55 '!$B17=""),"",'GA55 '!I$6)) -> 0 | J17: =IF(AND('Master Data'!$I$23='Master Data'!$Y$19),"",IF(AND('GA55 '!$B17=""),"",'GA55 '!J$6)) -> 0 | K17: =IF(AND('Master Data'!$I$23='Master Data'!$Y$19),"",IF(AND('GA55 '!$B17=""),"",'GA55 '!K$6)) -> 0 | L17: =IF(AND('Master Data'!$I$23='Master Data'!$Y$19),"",IF(AND('GA55 '!$B17=""),"",'GA55 '!L$6)) -> 0 | M17: 37632 | N17: =IF(AND('Master Data'!$I$23='Master Data'!$Y$19),"",IF(AND('GA55 '!$B17=""),"",'GA55 '!N$6)) -> 0 | O17: =IF(AND('Master Data'!$I$23='Master Data'!$Y$19),"",IF(AND('GA55 '!$B17=""),"",'GA55 '!O$6)) -> 0 | P17: =IF(AND('GA55 '!$B17=""),"",ROUND((C17+D17+E17)*0.1,0)) -> 3703 | Q17: =IF(AND('Master Data'!$I$23='Master Data'!$Y$19),"",IF(AND('GA55 '!$B17=""),"",'GA55 '!Q$6)) -> 200 | R17: =IF(AND('Master Data'!$I$23='Master Data'!$Y$19),"",IF(AND('GA55 '!$B17=""),"",'GA55 '!R$6)) -> 0 | S17: =IF(AND('Master Data'!$I$23='Master Data'!$Y$19),"",IF(AND('GA55 '!$B17=""),"",'GA55 '!S$6)) -> 1000 | T17: =IF(AND('Master Data'!$I$23='Master Data'!$Y$19),"",IF(AND('GA55 '!$B17=""),"",'GA55 '!T$6)) -> 208 | U17: =IF(AND('Master Data'!$I$23='Master Data'!$Y$19),"",IF(AND('GA55 '!$B17=""),"",'GA55 '!U$6)) -> 0 | V17: =IF(AND('Master Data'!$I$23='Master Data'!$Y$19),"",IF(AND('GA55 '!$B17=""),"",'GA55 '!V$6)) -> 0 | W17: =IF(AND('Master Data'!$I$23='Master Data'!$Y$19),"",IF(AND('GA55 '!$B17=""),"",'GA55 '!W$6)) -> 0 | X17: =IF(AND('Master Data'!$I$23='Master Data'!$Y$19),"",IF(AND('GA55 '!$B17=""),"",'GA55 '!X$6)) -> 0 | Y17: =IF(AND('Master Data'!$I$23='Master Data'!$Y$19),"",IF(AND('GA55 '!$B17=""),"",'GA55 '!Y$6)) -> 0 | Z17: 5111 | AA17: 32521
A18: 13 | B18: Bonus | M18: 0 | P18: =IF(AND('GA55 '!$B18=""),"",ROUND((C18+D18+E18)*0.1,0)) -> 0 | Z18: 0 | AA18: 0
A19: 14 | B19: DA Arrear jul 19 to dec 20 | M19: 0 | P19: =IF(AND('GA55 '!$B19=""),"",ROUND((C19+D19+E19)*0.1,0)) -> 0 | Z19: 0 | AA19: 0
A20: 15 | B20: DA Arrear jan 20 to feb 20 | M20: 0 | P20: =IF(AND('GA55 '!$B20=""),"",ROUND((C20+D20+E20)*0.1,0)) -> 0 | Z20: 0 | AA20: 0
A21: 16 | B21: PL Surrender | M21: 0 | P21: =IF(AND('GA55 '!$B21=""),"",ROUND((C21+D21+E21)*0.1,0)) -> 0 | Z21: 0 | AA21: 0
A22: 17 | B22: Other Arrear | M22: 0 | P22: =IF(AND('GA55 '!$B22=""),"",ROUND((C22+D22+E22)*0.1,0)) -> 0 | Z22: 0 | AA22: 0
A23: 18 | B23: Other | M23: 0 | P23: =IF(AND('GA55 '!$B23=""),"",ROUND((C23+D23+E23)*0.1,0)) -> 0 | Z23: 0 | AA23: 0
A24: 19 | P24: =IF(AND('GA55 '!$B24=""),"",ROUND((C24+D24+E24)*0.1,0)) -> 
A25: 20 | P25: =IF(AND('GA55 '!$B25=""),"",ROUND((C25+D25+E25)*0.1,0)) -> 
A26: 21 | P26: =IF(AND('GA55 '!$B26=""),"",ROUND((C26+D26+E26)*0.1,0)) -> 
B27: TOTAL F | C27: =IF(AND($D$2=""),"",SUM(C6:C26)) -> 429600 | D27: =IF(AND($D$2=""),"",SUM(D6:D26)) -> 0 | E27: 14808 | F27: 0 | G27: 4776 | H27: 2400 | I27: 0 | J27: 0 | K27: 0 | L27: 0 | M27: 451584 | N27: 0 | O27: 0 | P27: 44436 | Q27: 2400 | R27: 0 | S27: 12000 | T27: 2496 | U27: 0 | V27: 0 | W27: 0 | X27: 0 | Y27: 0 | Z27: 61332 | AA27: 390252
C29: =UPPER(IF('Master Data'!D6="","",'Master Data'!D6)) -> HEERALAL JAT | S29: =IF(AND('Master Data'!H8=""),"",CONCATENATE("( ",UPPER('Master Data'!H8), " )",)) -> ( B.E.O.PICHHOR )
C30: Signature of Employee | S30: Signature of DDO

Sheet COMPUTATION
A1: =IF(AND('Master Data'!D4=""),"",CONCATENATE("Office Name :- ",PROPER('Master Data'!D4))) -> Office Name :- Principal, H.S.S.Girls Pichhore (3932003025) M.P. | T1: 2
C2: vk;dj x.kuk izi= o"kZ & | F2: 2020-2021 | H2: ¼dj fu/kkZj.k o"kZ & | J2: 2021-2022) | L2: =IF(T14=T2,"Old Tax Regime","New Tax Regime") -> Old Tax Regime | T2: 1
A3: 1 | B3: uke deZpkjh % | D3: =UPPER('Master Data'!D6) -> HEERALAL JAT | I3: in % | J3: =UPPER('Master Data'!H6) -> MIDDLE TEACHER | M3: PAN : | N3: =UPPER('Master Data'!D12) -> ABCDE1234H
A4: 2 | B4: vk; % o"kZ&2020&21 esa izkIr dqy osru ¼ dj ;ksX; lqfo/kkvksa ds eqY; lfgr ½ | N4: #- | O4: ='GA55 '!M27 -> 451584 | R4: आप विद्यमान आयकर दर या नवीन आयकर दर दोनों में से किसी एक विकल्प को चुनकर आयकर गणना प्रपत्र तैयार कर सकते है।
B5: ljdkj }kjk ns; NPS dh jkf'k & | N5: #- | O5: =IF('Master Data'!H18="Yes",0,IF('Master Data'!I25='Master Data'!V19,'GA55 '!P27,0)) -> 44436
A6: 3 | B6: x`g fdjk;k] /kkjk 10¼13-A½ ds vUrxrZ ,oa /kkjk 10¼14½ds vUrxrZ vU; Hkrs tks dj eqDÙk gSA | N6: #- | O6: =IF(T14=T2,SUM('Extra Ded. '!I7+'Extra Ded. '!E6+'Master Data'!E23),"0") -> 0 | Q6: E
A7: 4 | B7: 'ks"k ¼2&3½ | N7: #- | O7: =(O4+O5)-O6 -> 496020
A8: 5 | B8: ¼i½euksjatu Hkrk /kkjk 16 ¼ii½ ds vUrxrZ | K8: =IF(T14=T2,'Extra Ded. '!E8,"0") -> 0.00
B9: ¼ii½ O;o;k; dj /kkjk 16 ¼iii½ ds vUrxrZ | K9: =IF(T14=T2,'Extra Ded. '!E9,"0") -> 0.00
B10: ¼iii½ LVs.MMZ fMMsD'ku (Standard Deduction) 50]000 ¼vf/kdre½ | K10: =IF(T14=T2,'Extra Ded. '!E7,"0") -> 50000 | N10: #- | O10: =SUM(K8:M10) -> 50000
A11: 6 | B11: 'ks"k ¼4&5½ | N11: #- | O11: =O7-O10 -> 446020
A12: 7 | B12: ¼v½x`g lEifr ls vk;%¼1½ Loa; ds mi;ksx esa &'kwU; | I12: ¼2½ izkIr fdjk;k #- | K12: ='Extra Ded. '!E10 -> 0.00
B13: ¼c½ ?kVk;sa | D13: fdjk;s dk 30% | F13: x`g _.k ij C;kt | I13: x`gdj | K13: ;ksx 7¼c½
D14: =IF(T14=T2,ROUND(K12*0.3,0),"0") -> 0.00 | F14: =IF(T14=T2,'Extra Ded. '!E13,"0") -> 0.00 | I14: =IF(T14=T2,'Extra Ded. '!E11,"0") -> 0.00 | K14: =D14+F14+I14 -> 0.00 | T14: 1
B15: 'ks"k &@$¼7¼v½ ,oa ;ksx 7¼c½ dk½ | N15: #- | O15: =K12-K14 -> 0
A16: 8 | B16: cpr [kkrs ij C;kt % | E16: ='Extra Ded. '!I21 -> 1000 | G16: vU; vk; % | I16: ='Extra Ded. '!E24 -> 0 | J16: dqy 'ks"k &@$¼6,oa 7½ | N16: #- | O16: =O11+O15 -> 446020
A17: 9 | B17: ,QMh vkfn vU; tek jkf'k ij izkIr dqy C;kt | E17: ='Extra Ded. '!I23 -> 0 | G17: Bonds ls C;kt | I17: ='Extra Ded. '!E23 -> 0 | J17: ;ksx ¼8$9½ | N17: #- | O17: =E16+E17+I16+I17 -> 1000
A18: 10 | B18: ldy vk; | N18: #- | O18: =O16+O17 -> 447020
A19: 11 | B19: ?kVkb;s dVkSSfr;k¡ %& /kkjk US 80C, 80CCC,80CCD (1) | R19: Move Curser Here
B20: (A) vf/kdre lhek 1]50]000@& ¼/kkjk 80CCE ½ ] ¼/kkjk 80CCD (2), ds vykok
B21: (i) | C21: jkT; chek ¼SI) | F21: #- | G21: =IF(T14=T2,SUM('GA55 '!N27),"0") -> 0 | H21: (xi) | I21: isa'ku ;kstuk esa va'knku ECPF /kkjk 80ccd(1½ | L21: #- | M21: =IF('Master Data'!I25='Master Data'!V18,0,IF(T14=T1,0,IF(T34=T36,AA27,AB23))) -> 44436
B22: (ii) | C22: Other AG Deducation | F22: #- | G22: =IF(T14=T2,'GA55 '!Y27,"0") -> 0 | H22: (xii) | I22: isa'ku Iyku gsrq va'knku ¼/kkjk 80ccc½ | L22: #- | M22: =IF(T14=T2,'Extra Ded. '!I12,"0") -> 0 | Q22: https://www.youtube.com/watch?v=TJ5dWmZplAk
B23: (iii) | C23: jk"Vªh; cpr i= ¼NSC) | F23: #- | G23: =IF(T14=T2,'Extra Ded. '!E18,"0") -> 0 | H23: (xiii) | I23: jk"Vªh; cpr i= ij vnr C;kt | L23: #- | M23: =IF(T14=T2,'Extra Ded. '!E19,"0") -> 0 | Z23: =IF(AA23>AB23,AB23,AA23) -> 44436 | AA23: =IF('Master Data'!I25='Master Data'!V18,0,ROUND(10%*'GA55 '!M27,0)) -> 45158 | AB23: =IF('Master Data'!I25='Master Data'!V19,'GA55 '!P27,0) -> 44436 | AH23: E अधिक जानकारी के लिए देखें Youtube वीडियो
B24: (iv) | C24: yksd Hkfo"; fuf/k ¼PPF) | F24: #- | G24: =IF(T14=T2,'Extra Ded. '!E20,"0") -> 0 | H24: (xiv) | I24: V;w'ku Qhl | L24: #- | M24: =IF(T14=T2,'Extra Ded. '!E16,"0") -> 0 | Z24: =SUM(G21:G31)+SUM(M22:M30)+O33 -> 46836 | AA24: =IF('Extra Ded. '!I14>50000,50000,'Extra Ded. '!I14) -> 50000 | AB24: =IF(Z24>150000,Z24-150000,0) -> 0
B25: (v) | C25: jk"Vªh; cpr Ldhe ¼NSS) | F25: #- | G25: =IF(T14=T2,'Extra Ded. '!E21,"0") -> 0 | H25: (xv) | I25: bfDoVh fyad lsfoax Ldhe | L25: #- | M25: =IF(T14=T2,'Extra Ded. '!I6,"0") -> 0
B26: (vi) | C26: lkekU; izko/kk;h fuf/k ¼GPF) | F26: #- | G26: =IF(AND(T14=T2,'Master Data'!I25='Master Data'!V18),'GA55 '!O27,"0") -> 0 | H26: (xvi) | I26: LFkfxr okf"kZdh ¼Defferred Annuty) | L26: #- | M26: =IF(T14=T2,'Extra Ded. '!I8,"0") -> 0 | Q26: यदि आप NPS कार्मिक है और Section US 80CCD (1B) के अंतर्गत अधिकतम 50,000 की छूट लेना चाहते है तो यहाँ नीचे बॉक्स में क्लिक करे।
B27: (vii) | C27: lkewfgd chek izhfe;e ¼G.Ins.) | F27: #- | G27: =IF(T14=T2,'GA55 '!Q27,"0") -> 2400 | H27: (xvii) | I27: ih-,y-vkbZ- ¼PLI) | L27: #- | M27: =IF(T14=T2,'Extra Ded. '!E15,"0") -> 0 | AA27: =IFERROR(SUM(Z23)-MIN(AA24,AB24),0) -> 44436 | AC27: =MIN(AA24,AB24) -> 0
B28: (viii) | C28: ;w- ,y- vkbZ- ih-@okf"kZd Iyku | F28: #- | G28: =IF(T14=T2,'Extra Ded. '!E17,"0") -> 0 | H28: (xviii) | I28: vU; tekjkf'k ¼/kkjk 80 lh ds vUrxZr½ E;qpy QaM | L28: #- | M28: =IF(T14=T2,'Extra Ded. '!I10,"0") -> 0
B29: (ix) | C29: x`g _.k fdLr ¼HBA Premium) | F29: #- | G29: =IF(T14=T2,'Extra Ded. '!E12,"0") -> 0 | H29: (xix) | I29: lqdU;k le`f) ;kstuk esa tek jkf'k | L29: #- | M29: =IF(T14=T2,'Extra Ded. '!E22,"0") -> 0 | AA29: =IF(Z24>=200000,50000,AC27) -> 0
B30: (x) | C30: thou chek (Extra LIC) | F30: #- | G30: =IF(T14=T2,'Extra Ded. '!E14,"0") -> 0 | H30: (xx) | I30: vU; o fQDl fMiksftV ¼5 o"kZ gsrq½ | L30: #- | M30: =IF(T14=T2,'Extra Ded. '!E24,"0") -> 0
B31: (xxi) | F31: #- | H31: ;ksx ( i ls xviii ) | L31: #- | M31: =SUM(G21:G31)+SUM(M21:M30) -> 46836 | AA31: =('Extra Ded. '!I23+'Extra Ded. '!I21) -> 1000
B32: vf/kdre dVkSrh dh jkf'k 1-50 yk[k #i, rd | N32: #- | O32: =IF(M31<150001,ROUND(M31,0),150000) -> 46836 | R32: H | S32: Move curser | AA32: =IF(AA31>10000,10000,AA31) -> 1000 | AB32: =IF(AA31>50000,50000,AA31) -> 1000
B33: (B) ?kVkb;s& /kkjk 80CCD(2) fu;ksDrk }kjk isa'ku va'knku dh jkf'k ¼vf/kdre osru dk 10%) i`Fkd ls NwV | O33: =IF('Master Data'!I25='Master Data'!V19,'GA55 '!P27,0) -> 44436 | AA33: =IF('Master Data'!D18="Under 60",AA32,IF('Master Data'!D18="Above 60",AB32,IF('Master Data'!D18="Above 80",AB32,0))) -> 1000
B34: (C) ?kVkb;s & /kkjk 80CCD (1B) uohu isa'ku ;kstuk esa vfrfjDr va'knku ¼vf/kdre :- 50]000) | N34: #- | O34: =IF(T14=T1,0,IF(T34=T36,AB35,0)) -> 0 | T34: FALSE
B35: ;ksx 11(A+B+C) | N35: #- | O35: =SUM(O32:O34) -> 91272 | AB35: =IF('Master Data'!I25='Master Data'!V19,AA29,0) -> 0
A36: 12 | B36: vU; dVkSfr;k¡ | T36: TRUE
B37: 1-/kkjk 80 D fpfdRlk chek izhfe;e ¼Lo;a]ifr@iRuh o cPpksa ds fy, : 25000] ekrk&firk ds fy, : 25000]lhfu;j flVhtu : 50000½ | N37: #- | O37: =IF(T14=T2,'Extra Ded. '!I15,"0") -> 0
B38: 2- /kkjk 80DD fodykax vkfJrksa ds fpfdRlk mipkj ¼vf/kdre 75]000 rFkk 80% ;k vf/kd fodykaxrk 125]000½ | N38: #- | O38: =IF(T14=T2,'Extra Ded. '!I16,"0") -> 0 | AB38: ='GA55 '!N27+'GA55 '!P27+'Extra Ded. '!E18+'Extra Ded. '!E20+'Extra Ded. '!E21+'GA55 '!O27+'GA55 '!Y27+'Extra Ded. '!E17+'Extra Ded. '!E12+'Extra Ded. '!E14+'Extra Ded. '!I12+'Extra Ded. '!E19+'Extra Ded. '!E16+'Extra Ded. '!I6+'Extra Ded. '!I8+'Extra Ded. '!E15+'Extra Ded. '!I10+'Extra Ded. '!E22+'Extra Ded. '!E24 -> 44436
B39: 3- /kkjk 80DDB fof'k"V jksaxksa ds mipkj gsrq dVkSrh ¼vf/kdre : 40]000] lhfu;j flVhtu gsrq : 100]000½ | N39: #- | O39: =IF(T14=T2,'Extra Ded. '!I17,"0") -> 0
B40: 4- /kkjk 80E mPp f'k{kk gsrq fy, _.k dk C;kt | N40: #- | O40: =IF(T14=T2,'Extra Ded. '!I18,"0") -> 0 | AB40: ='Extra Ded. '!I15+'Extra Ded. '!I16+'Extra Ded. '!I17+'Extra Ded. '!I18+('Extra Ded. '!I19+'GA55 '!U27)+'Extra Ded. '!I20+AA33+'Extra Ded. '!I22 -> 1000
B41: 5- /kkjk 80G /kekZFkZ laLFkkvksa vkfn dks fn;s nku ¼ d Js.kh esa 100 izfr'kr ,oa [k Js.kh esa 50 izfr'kr½ ¼dsUnz o jkT; ljdkj ds QaM esa ½ | N41: #- | O41: =IF(T14=T2,('Extra Ded. '!I19+'GA55 '!S27),"0") -> 12000 | R41: यदि आपको धारा 80 TTA के बारे में डिटेल से जानकारी चाहिए तो नीचे सेल पर माउस को ले जाइये।
B42: 6- /kkjk 80U LFkkbZ :i ls 'kkjhfjd vleFkZrrk dh n'kk esa ¼vf/kdre 75]000 rFkk vf/kfu;e 1995ds vuqlkj 125]000½ | N42: #- | O42: =IF(T14=T2,'Extra Ded. '!I20,"0") -> 0
B43: 7- /kkjk 80 TTA cpr [kkrs ij vf/kdre C;kt :- 10]000 194(IA) , ( ofj"B ukxfjdks C;kt ij NwV 50000rd ½ | N43: #- | O43: =IF(T14=T2,AA33,"0") -> 1000
B44: 8- /kkjk 80 GGA vuqeksfnr oSKkfud] lkekftd] xzkeh.k fodkl vkfn gsrq fn;k x;k nku | N44: #- | O44: =IF(T14=T2,'Extra Ded. '!I22,"0") -> 0 | R44: Move Curser Here
B45: dqy ;ksx 12 ¼ 1 ls 8 rd ½ | N45: #- | O45: =SUM(O37:O44) -> 13000
A46: 13 | B46: dqy dVkSrh ( 11 + 12) | N46: #- | O46: =O35+O45 -> 104272
A47: 14 | B47: dj ;ksX; vk; ( 10 - 13 ) | N47: #- | O47: =(O18-O46) -> 342748
A48: 15 | B48: dqy vk; dh jkf'k dks lEiw.kZ djuk ¼ nl ds xq.kd esa ½ /kkjk 288A | N48: #- | O48: =ROUND(O47,-1) -> 342750
A49: 16 | B49: vk;dj dh x.kuk mijksDr dkWye 15 ds vk/kkj ij | X49: old | AB49: New
B50: ,d O;fDr dj nkrk | F50: ofj"B ukxfjd ¼60 ls 80 o"kZ rd½ | J50: 80 o"kZ ;k vf/kd vk;q | X50: 0 | Y50: 0 | Z50: 0 | AA50: 0 | AB50: 0 | AC50: 0 | AD50: 0 | AE50: 0
B51: Up to Rs. 2,50,000 | E51: 0% | F51: =IF(T14=T2,"Up to Rs. 3,00,000","Up to Rs. 2,50,000") -> Up to Rs. 3,00,000 | I51: 0% | J51: =IF(T14=T2,"","Up to Rs. 2,50,000") ->  | M51: 0% | N51: #- | O51: 0 | X51: =ROUND(IF(O48<=250000,0,IF(O48>=500000,12500,IF(O48<=500000,0+(O48-250000)*0.05))),0) -> 4638 | Y51: =ROUND(IF(O48<=300000,0,IF(O48>=500000,10000,IF(O48<=500000,(O48-300000)*0.05))),0) -> 2138 | Z51: 0 | AA51: =IF('Master Data'!D18="Under 60",X51,IF('Master Data'!D18="Above 60",Y51,Z51)) -> 4638 | AB51: =ROUND(IF(O48<250001,0,IF(O48>500000,12500,((O48-250000)*0.05))),0) -> 4638 | AC51: =ROUND(IF(O48<250001,0,IF(O48>500000,12500,((O48-250000)*0.05))),0) -> 4638 | AD51: =ROUND(IF(O48<250001,0,IF(O48>500000,12500,((O48-250000)*0.05))),0) -> 4638 | AE51: =IF('Master Data'!D18="Under 60",AB51,IF('Master Data'!D18="Above 60",AC51,AD51)) -> 4638
B52: 2,50,001 to 5,00,000 | E52: 5% | F52: =IF(T14=T2,"3,00,001 to 5,00,000"," 2,50,001 to 5,00,000") -> 3,00,001 to 5,00,000 | I52: 5% | J52: =IF(T14=T2,"Up to Rs. 5,00,000","2,50,001 to 5,00,000") -> Up to Rs. 5,00,000 | M52: =IF(T14=T2,"0%","5%") -> 0% | N52: #- | O52: =IF($T$14=$T$2,AA51,AE51) -> 4638 | X52: =ROUND(IF(O48<=500000,0,IF(O48>=1000000,100000,IF(O48<=1000000,(O48-500000)*0.2,"0"))),0) -> 0 | Y52: =ROUND(IF(O48<=500000,0,IF(O48>=1000000,100000,IF(O48<=1000000,(O48-500000)*0.2,"0"))),0) -> 0 | Z52: =ROUND(IF(O48<=500000,0,IF(O48>=1000000,100000,IF(O48<=1000000,(O48-500000)*0.2,"0"))),0) -> 0 | AA52: =IF('Master Data'!D18="Under 60",X52,IF('Master Data'!D18="Above 60",Y52,Z52)) -> 0 | AB52: =ROUND(IF(O48<500001,0,IF(O48>750000,25000,((O48-500000)*0.1))),0) -> 0 | AC52: =ROUND(IF(O48<500001,0,IF(O48>750000,25000,((O48-500000)*0.1))),0) -> 0 | AD52: =ROUND(IF(O48<500001,0,IF(O48>750000,25000,((O48-500000)*0.1))),0) -> 0 | AE52: =IF('Master Data'!D18="Under 60",AB52,IF('Master Data'!D18="Above 60",AC52,AD52)) -> 0
B53: =IF(T14=T2,"5,00,001 to 10,00,000","5,00,001 to 7,50,000") -> 5,00,001 to 10,00,000 | E53: =IF(T14=T2,"20%","10%") -> 20% | F53: =IF(T14=T2,"5,00,001 to 10,00,000","5,00,001 to 7,50,000") -> 5,00,001 to 10,00,000 | I53: =IF(T14=T2,"20%","10%") -> 20% | J53: =IF(T14=T2,"5,00,001 to 10,00,000","5,00,001 to 7,50,000") -> 5,00,001 to 10,00,000 | M53: =IF(T14=T2,"20%","10%") -> 20% | N53: #- | O53: =IF($T$14=$T$2,AA52,AE52) -> 0 | X53: =ROUND(IF(O48>1000000,(O48-1000000)*0.3,"0"),0) -> 0 | Y53: =ROUND(IF(O48>1000000,(O48-1000000)*0.3,"0"),0) -> 0 | Z53: =ROUND(IF(O48>1000000,(O48-1000000)*0.3,"0"),0) -> 0 | AA53: =IF('Master Data'!D18="Under 60",X53,IF('Master Data'!D18="Above 60",Y53,Z53)) -> 0 | AB53: =ROUND(IF(O48<750001,0,IF(O48>1000000,37500,((O48-750000)*0.15))),0) -> 0 | AC53: =ROUND(IF(O48<750001,0,IF(O48>1000000,37500,((O48-750000)*0.15))),0) -> 0 | AD53: =ROUND(IF(O48<750001,0,IF(O48>1000000,37500,((O48-750000)*0.15))),0) -> 0 | AE53: =IF('Master Data'!D18="Under 60",AB53,IF('Master Data'!D18="Above 60",AC53,AD53)) -> 0
B54: =IF(T14=T2,"Above 10,00,000"," 7,50,001 to 10,00,000") -> Above 10,00,000 | E54: =IF(T14=T2,"30%","15%") -> 30% | F54: =IF(T14=T2,"Above 10,00,000"," 7,50,001 to 10,00,000") -> Above 10,00,000 | I54: =IF(T14=T2,"30%","15%") -> 30% | J54: =IF(T14=T2,"Above 10,00,000"," 7,50,001 to 10,00,000") -> Above 10,00,000 | M54: =IF(T14=T2,"30%","15%") -> 30% | N54: #- | O54: 0 | AA54: =IF('Master Data'!D18="Under 60",X54,IF('Master Data'!D18="Above 60",Y54,Z54)) -> 0 | AB54: =ROUND(IF(O48<1000001,0,IF(O48>1250000,50000,((O48-1000000)*0.2))),0) -> 0 | AC54: =ROUND(IF(O48<1000001,0,IF(O48>1250000,50000,((O48-1000000)*0.2))),0) -> 0 | AD54: =ROUND(IF(O48<1000001,0,IF(O48>1250000,50000,((O48-1000000)*0.2))),0) -> 0 | AE54: =IF('Master Data'!D18="Under 60",AB54,IF('Master Data'!D18="Above 60",AC54,AD54)) -> 0
B55: =IF(T14=T2," ","10,00,001 to 12,50,000") ->  | E55: =IF(T14=T2," ","20%") ->  | F55: =IF(T14=T2," ","10,00,001 to 12,50,000") ->  | I55: =IF(T14=T2," ","20%") ->  | J55: =IF(T14=T2," ","10,00,001 to 12,50,000") ->  | M55: =IF(T14=T2," ","20%") ->  | N55: =IF(T14=T2," ","#-") ->  | O55: =IF($T$14=$T$2,AA54,AE54) -> 0 | R55: यदि आपको धारा 87A के बारे में जानकारी चाहिए तो नीचे सेल पर माउस को ले जाइये। | AA55: =IF('Master Data'!D18="Under 60",X55,IF('Master Data'!D18="Above 60",Y55,Z55)) -> 0 | AB55: =ROUND(IF(O48<1250001,0,IF(O48>1500000,62500,((O48-1250000)*0.25))),0) -> 0 | AC55: =ROUND(IF(O48<1250001,0,IF(O48>1500000,62500,((O48-1250000)*0.25))),0) -> 0 | AD55: =ROUND(IF(O48<1250001,0,IF(O48>1500000,62500,((O48-1250000)*0.25))),0) -> 0 | AE55: =IF('Master Data'!D18="Under 60",AB55,IF('Master Data'!D18="Above 60",AC55,AD55)) -> 0
B56: =IF(T14=T2," ","12,50,001 to 15,00,000") ->  | E56: =IF(T14=T2," ","25%") ->  | F56: =IF(T14=T2," ","12,50,001 to 15,00,000") ->  | I56: =IF(T14=T2," ","25%") ->  | J56: =IF(T14=T2," ","12,50,001 to 15,00,000") ->  | M56: =IF(T14=T2," ","25%") ->  | N56: =IF(T14=T2," ","#-") ->  | O56: 0 | AA56: =IF('Master Data'!D18="Under 60",X56,IF('Master Data'!D18="Above 60",Y56,Z56)) -> 0 | AB56: =ROUND(IF(O48<1500001,0,(O48-1500000)*0.3),0) -> 0 | AC56: =ROUND(IF(O48<1500001,0,(O48-1500000)*0.3),0) -> 0 | AD56: =ROUND(IF(O48<1500001,0,(O48-1500000)*0.3),0) -> 0 | AE56: =IF('Master Data'!D18="Under 60",AB56,IF('Master Data'!D18="Above 60",AC56,AD56)) -> 0
B57: =IF(T14=T2," ","Above Rs. 15,00,000") ->  | E57: =IF(T14=T2," ","30%") ->  | F57: =IF(T14=T2," ","Above Rs. 15,00,000") ->  | I57: =IF(T14=T2," ","30%") ->  | J57: =IF(T14=T2," ","Above Rs. 15,00,000") ->  | M57: =IF(T14=T2," ","30%") ->  | N57: =IF(T14=T2," ","#-") ->  | O57: =IF($T$14=$T$2,AA56,AE56) -> 0 | X57: =SUM(X50:X53) -> 4638 | Y57: =SUM(Y50:Y53) -> 2138 | Z57: 0 | AA57: =IF('Master Data'!D18="Under 60",X57,IF('Master Data'!D18="Above 60",Y57,Z57)) -> 4638 | AB57: =SUM(AB50:AB56) -> 4638 | AC57: =SUM(AC50:AC56) -> 4638 | AD57: 4638 | AE57: =IF('Master Data'!D18="Under 60",AB57,IF('Master Data'!D18="Above 60",AC57,AD57)) -> 4638
B58: ¼1½ ;ksx vk;dj | N58: #- | O58: =SUM(O51:O57) -> 4638
B59: ¼2½ NwV ?kkjk 87¼A½ ¼ 5yk[k rd dh dj ;ksX; vk; ij vk;dj dh NwV vf/kdre :- 12500@& rd½ | N59: #- | O59: =IF(O48>500000,0,IF(O58<12500,O58,12500)) -> 4638 | X59: =ROUND(IF(O48<=250000,0,IF(O48<=500000,(O48-250000)*0.05,IF(O48<=1000000,12500+(O48-500000)*0.2,IF(O48>1000000,112500+(O48-1000000)*0.3,"0")))),0) -> 4638 | Y59: =ROUND(IF(O48<=300000,0,IF(O48<=500000,(O48-300000)*0.05,IF(O48<=1000000,10000+(O48-500000)*0.2,IF(O48>1000000,110000+(O48-1000000)*0.3,"0")))),0) -> 2138 | Z59: =ROUND(IF(O48<=250000,0,IF(O48<=500000,(O48-250000)*0.05,IF(O48<=1000000,0+(O48-500000)*0.2,IF(O48>1000000,100000+(O48-1000000)*0.3,"0")))),0) -> 4638
B60: ¼3½ 'ks"k vk;dj ¼1&2½ | N60: #- | O60: =O58-O59 -> 0 | Y60: =IF(T63>350000,0,IF(T63<2501,T63,2500)) -> 0
B61: ¼4½ | C61: f'k{kk ,oa fpfdRlk midj 4% ¼vk;dj ij ½ | N61: #- | O61: =ROUND((O60*0.04),0) -> 0
B62: dqy vk;dj ¼3$4½ | N62: #- | O62: =SUM(O60:O61) -> 0
A63: 17 | B63: ?kVkb;s %& jkgr /kkjk 89 ds rgr | N63: #- | O63: ='Extra Ded. '!I24 -> 0
A64: 18 | B64: dqy 'ks"k vk;dj | N64: #- | O64: =O62-O63 -> 0
A65: 19 | B65: vk;dj dVkSrh dk fooj.k | E65: flrEcj 2020 rd :i;s | H65: vDVwcj ls fnlEcj 2020 :i;s | J65: tuojh 2021 :i;s | K65: Qjojh 2021 :i;s | M65: Vh-Mh-,l- :Ik;s | O65: dqy;ksx dkWye 19
E66: =SUM('GA55 '!T6:T12) -> 1456 | H66: =SUM('GA55 '!T13:T15) -> 624 | J66: ='GA55 '!T16 -> 208 | K66: ='GA55 '!T17 -> 208 | M66: =SUM('GA55 '!T27-(E66+H66+J66+K66))+'Extra Ded. '!I9 -> 0 | O66: =SUM(E66,H66,J66,K66,M66) -> 2496
A67: =IF(O64>O66,"Income Tax Payable",IF(O64<O66,"Income Tax Refundable","Income Tax Payble/Refundable")) -> Income Tax Refundable | N67: #- | O67: =IF(O64>O66,O64-O66,O66-O64) -> 2496
L69: gLrk{kj dkfeZd

Sheet Form No. 16
B1: FORM NO. 16
B2: [(See Rule 31(1)(a)]
B3: PART-A
B4: Certificate under section 203 of the income-tax act, 1961 for Tax deducted at source on Salary.
B5: Name and address of the Employer | G5: Name and adress of the Employee
B6: =IF('Master Data'!H8="","",UPPER('Master Data'!H8)) -> B.E.O.PICHHOR | G6: =IF('Master Data'!D6="","",UPPER('Master Data'!D6)) -> HEERALAL JAT
G7: =IF('Master Data'!D8="","",UPPER('Master Data'!D8)) -> GHS HARIJAN BASTI PICHHORE
B8: PAN of the Deductor | E8: TAN of the Deductor | G8: PAN of the Employee | J8: Employee Ref No.
E9: ='Master Data'!H12 -> 0 | G9: =UPPER('Master Data'!D12) -> ABCDE1234H | J9: =UPPER('Master Data'!D10) -> 390263384
B10: CIT (TDS) | G10: Assess. Year | I10: Peroid with the Employer
B11: Adress | C11: The Commissioner of Income Tax, Pali | G11: 2021-22 | I11: From | K11: To
B12: City | C12: PALI | E12: PIN Code | F12: 306401 | I12: 01-4-2020 | K12: 31-03-2021
B13: Summary of amount paid/credited and tax deducted at source thereon in respect of the employee
B14: Quarters | C14: Receipt Numbers of original quarterly statements of TDS under sub-secion (3) of section 200 | F14: Amount paid/ credited | G14: Amount of tax deducted (Rs.) | J14: Amount of tax deposited/ remitted (Rs.)
B15: 1st | G15: =SUM('GA55 '!T6:T8) -> Rs. 624 | J15: =G15 -> Rs. 624
B16: 2nd | G16: =SUM('GA55 '!T9:T11) -> Rs. 624 | J16: =G16 -> Rs. 624
B17: 3rd | G17: =SUM('GA55 '!T12:T14) -> Rs. 624 | J17: =G17 -> Rs. 624
B18: 4th | G18: =SUM('GA55 '!T15:T26) -> Rs. 624 | J18: =G18 -> Rs. 624
B19: TOTAL (Rs.) | F19: =SUM(F15:F18) -> Rs. 0 | G19: =SUM(G15:G18) -> Rs. 2,496 | J19: =SUM(J15:J18) -> Rs. 2,496
B20: I. Details of tax deducted and deposited in the Central Government account through book adjustment
B21: (The Deductor to provide payment-wise details of tax deducted and deposited with respect to the deductee)
B22: S.N. | C22: Tax Deposited in respect of the deductee (Rs) | E22: Book identification number (BIN)
E23: Receipt numbers of form No. 24G | F23: DDO serial number in Form No. 24G | G23: Date of transfer voucher (dd/mm/yyyy) | J23: Status of matching with Form No. 24G
B24: 1 | C24: ='GA55 '!X6 -> Rs. 0 | J24: =IF(E24>"0","Yes","-") -> -
B25: 2 | C25: ='GA55 '!X7 -> Rs. 0 | J25: =IF(E25>"0","Yes","-") -> -
B26: 3 | C26: ='GA55 '!X8 -> Rs. 0 | J26: -
B27: 4 | C27: ='GA55 '!X9 -> Rs. 0 | J27: -
B28: 5 | C28: ='GA55 '!X10 -> Rs. 0 | J28: -
B29: 6 | C29: ='GA55 '!X11 -> Rs. 0 | J29: -
B30: 7 | C30: ='GA55 '!X12 -> Rs. 0 | J30: -
B31: 8 | C31: ='GA55 '!X13 -> Rs. 0 | J31: -
B32: 9 | C32: ='GA55 '!X14 -> Rs. 0 | J32: -
B33: 10 | C33: ='GA55 '!X15 -> Rs. 0 | J33: -
B34: 11 | C34: ='GA55 '!X16 -> Rs. 0 | J34: -
B35: 12 | C35: ='GA55 '!X17 -> Rs. 0 | J35: -
B36: 13 | C36: =SUM(C24:D34)-'GA55 '!X27 -> Rs. 0 | J36: -
B37: 14 | C37: ='[2]G.A. 55'!T24+'[2]G.A. 55'!T26 -> Rs. 0 | J37: -
B38: Total | C38: =SUM(C24:D37) -> Rs. 0
B39: II. Details of Tax deducted and deposited in Central Government Account through Challan.
B40: (The deducter to provide payment-wise details of tax deducted and deposited with respect to the deductee)
B41: S.N. | C41: Tax Deposited in respect on of the deductee (Rs) | E41: Challan identification number (CIN)
E42: BSR code of the Bank Branch | G42: Date on which tax deposited (dd/mm/yyyy) | I42: Challan Serial Number | K42: Status of matching with OLTAS
B43: 1 | K43: =IF(C43>"0","Yes","-") -> -
B44: 2 | K44: =IF(C44>"0","Yes","-") -> -
B45: 3 | K45: -
B46: 4 | K46: -
B47: 5 | K47: -
B48: 6 | K48: -
B49: 7 | K49: -
B50: 8 | K50: -
B51: 9 | K51: -
B52: 10 | K52: -
B53: 11 | K53: -
B54: 12 | K54: -
B55: 13
B56: 14
B57: Total | C57: =SUM(C43:C56) -> 0
B58: :: 2 ::
B59: Verification
B60: I | C60: =B6&"," -> B.E.O.PICHHOR, | F60: Son/Daughter of | K60: working in the
B61: capacity of | D61: PRINCIPAL | G61: (designation) do hereby certify that a sum of
B62: Rs. | C62: =J19 -> 2496.00 | D62: =IF(OR(LEN(FLOOR(C62,1))=13,FLOOR(C62,1)<=0),"Out of range",PROPER(SUBSTITUTE(CONCATENATE(CHOOSE(MID(TEXT(INT(C62),REPT(0,12)),1,1)+1,"","one hundred ","two hundred ","three hundred ","four hundred ","five hundred ","six hundred ","seven hundred ","eight hundred ","nine hundred "),CHOOSE(MID(TEXT(INT(C62),REPT(0,12)),2,1)+1,"",CHOOSE(MID(TEXT(INT(C62),REPT(0,12)),3,1)+1,"ten","eleven","twelve","thirteen","fourteen","fifteen","sixteen","seventeen","eighteen","nineteen"),"twenty","thirty","forty","fifty","sixty","seventy","eighty","ninety"),IF(VALUE(MID(TEXT(INT(C62),REPT(0,12)),2,1))>1,CHOOSE(MID(TEXT(INT(C62),REPT(0,12)),3,1)+1,"","-one","-two","-three","-four","-five","-six","-seven","-eight","-nine"),IF(VALUE(MID(TEXT(INT(C62),REPT(0,12)),2,1))=0,CHOOSE(MID(TEXT(INT(C62),REPT(0,12)),3,1)+1,"","one","two","three","four","five","six","seven","eight","nine"),"")),IF(C62>=10^9," billion ",""),CHOOSE(MID(TEXT(INT(C62),REPT(0,12)),4,1)+1,"","one hundred ","two hundred ","three hundred ","four hundred ","five hundred ","six hundred ","seven hundred ","eight hundred ","nine hundred "),CHOOSE(MID(TEXT(INT(C62),REPT(0,12)),5,1)+1,"",CHOOSE(MID(TEXT(INT(C62),REPT(0,12)),6,1)+1,"ten","eleven","twelve","thirteen","fourteen","fifteen","sixteen","seventeen","eighteen","nineteen"),"twenty","thirty","forty","fifty","sixty","seventy","eighty","ninety"),IF(VALUE(MID(TEXT(INT(C62),REPT(0,12)),5,1))>1,CHOOSE(MID(TEXT(INT(C62),REPT(0,12)),6,1)+1,"","-one","-two","-three","-four","-five","-six","-seven","-eight","-nine"),IF(VALUE(MID(TEXT(INT(C62),REPT(0,12)),5,1))=0,CHOOSE(MID(TEXT(INT(C62),REPT(0,12)),6,1)+1,"","one","two","three","four","five","six","seven","eight","nine"),"")),IF(VALUE(MID(TEXT(INT(C62),REPT(0,12)),4,3))>0," million ",""),CHOOSE(MID(TEXT(INT(C62),REPT(0,12)),7,1)+1,"","one hundred ","two hundred ","three hundred ","four hundred ","five hundred ","six hundred ","seven hundred ","eight hundred ","nine hundred "),CHOOSE(MID(TEXT(INT(C62),REPT(0,12)),8,1)+1,"",CHOOSE(MID(TEXT(INT(C62),REPT(0,12)),9,1)+1,"ten","eleven","twelve","thirteen","fourteen","fifteen","sixteen","seventeen","eighteen","nineteen"),"twenty","thirty","forty","fifty","sixty","seventy","eighty","ninety"),IF(VALUE(MID(TEXT(INT(C62),REPT(0,12)),8,1))>1,CHOOSE(MID(TEXT(INT(C62),REPT(0,12)),9,1)+1,"","-one","-two","-three","-four","-five","-six","-seven","-eight","-nine"),IF(VALUE(MID(TEXT(INT(C62),REPT(0,12)),8,1))=0,CHOOSE(MID(TEXT(INT(C62),REPT(0,12)),9,1)+1,"","one","two","three","four","five","six","seven","eight","nine"),"")),IF(VALUE(MID(TEXT(INT(C62),REPT(0,12)),7,3))," thousand ",""),CHOOSE(MID(TEXT(INT(C62),REPT(0,12)),10,1)+1,"","one hundred ","two hundred ","three hundred ","four hundred ","five hundred ","six hundred ","seven hundred ","eight hundred ","nine hundred "),CHOOSE(MID(TEXT(INT(C62),REPT(0,12)),11,1)+1,"",CHOOSE(MID(TEXT(INT(C62),REPT(0,12)),12,1)+1,"ten","eleven","twelve","thirteen","fourteen","fifteen","sixteen","seventeen","eighteen","nineteen"),"twenty","thirty","forty","fifty","sixty","seventy","eighty","ninety"),IF(VALUE(MID(TEXT(INT(C62),REPT(0,12)),11,1))>1,CHOOSE(MID(TEXT(INT(C62),REPT(0,12)),12,1)+1,"","-one","-two","-three","-four","-five","-six","-seven","-eight","-nine"),IF(VALUE(MID(TEXT(INT(C62),REPT(0,12)),11,1))=0,CHOOSE(MID(TEXT(INT(C62),REPT(0,12)),12,1)+1,"","one","two","three","four","five","six","seven","eight","nine"),"")))," "," ")&IF(FLOOR(C62,1)>1," Rupees"," Rupees"))&IF(ISERROR(FIND(".",C62,1)),""," and "&PROPER(IF(LEN(LEFT(TRIM(MID(SUBSTITUTE('[2]16 NO.'!$B$62,".",REPT(" ",255)),255,200)),2))=1,CHOOSE(1*LEFT(TRIM(MID(SUBSTITUTE('[2]16 NO.'!$B$62,".",REPT(" ",255)),255,200)),2),"ten","twenty","thirty","forty","fifty","sixty","seventy","eighty","ninety")&" Paise","")&CONCATENATE(CHOOSE(MID(TEXT(INT(LEFT(TRIM(MID(SUBSTITUTE('[2]16 NO.'!$B$62,".",REPT(" ",255)),255,200)),2)),REPT(0,12)),11,1)+1,"",CHOOSE(MID(TEXT(INT(LEFT(TRIM(MID(SUBSTITUTE('[2]16 NO.'!$B$62,".",REPT(" ",255)),255,200)),2)),REPT(0,12)),12,1)+1,"ten","eleven","twelve","thirteen","fourteen","fifteen","sixteen","seventeen","eighteen","nineteen"),"twenty","thirty","forty","fifty","sixty","seventy","eighty","ninety"),IF(VALUE(MID(TEXT(INT(LEFT(TRIM(MID(SUBSTITUTE('[2]16 NO.'!$B$62,".",REPT(" ",255)),255,200)),2)),REPT(0,12)),11,1))>1,CHOOSE(MID(TEXT(INT(LEFT(TRIM(MID(SUBSTITUTE('[2]16 NO.'!$B$62,".",REPT(" ",255)),255,200)),2)),REPT(0,12)),12,1)+1,"","-one","-two","-three","-four","-five","-six","-seven","-eight","-nine")&" Paise",IF(LEFT(TRIM(MID(SUBSTITUTE('[2]16 NO.'!$B$62,".",REPT(" ",255)),255,200)),2)="01","one Paise",IF(LEFT(TRIM(MID(SUBSTITUTE('[2]16 NO.'!$B$62,".",REPT(" ",255)),255,200)),1)="0",CHOOSE(MID(TEXT(INT(LEFT(TRIM(MID(SUBSTITUTE('[2]16 NO.'!$B$62,".",REPT(" ",255)),255,200)),2)),REPT(0,12)),12,1)+1,"","one","two","three","four","five","six","seven","eight","nine")&" Paise",""))))))) -> Two Thousand Four Hundred Ninety-Six Rupees | I62: (in words) has been deducted
B63: and deposited to the credit of the Central Govt.. I further certify that the information given above is true, complete and correct
B64: and is based on the books of account, documents, TDS statement, TDS deposited and other available records.
B65: Place | D65: =G7 -> GHS HARIJAN BASTI PICHHORE
B66: Date | D66: =TODAY() -> 2020-12-20 | F66: Signature of person responsible for deduction of tax
B67: Designation | D67: =D61 -> PRINCIPAL | F67: Full name : | G67: =B6 -> B.E.O.PICHHOR
B68: PART- B (Annexure)
B69: DETAILS OF SALARY PAID AND ANY OTHER INCOME AND TAX DEDUCTED
B70: 1. Gross salary
B71: (a) Salary as per provisions contained in section 17(1) | G71: =COMPUTATION!O4+COMPUTATION!O5 -> Rs. 496,020.00
B72: (b) Value of perquisites u/s 17(2) (as per Form No. 12BA, wherever applicable)
B73: (c) Profits in lieu of salary under section 17(3) (as per Form No. 12BA, wherever applicable) | G73: 0
B74: (d) Total (a+b+c) | I74: =G71+G72+G73 -> Rs. 496,020.00
B75: 2. Less: Allowance to the extent exempt u/s 10 House Rent Allowance
B76: Allowance
B77: House Rent Allow. US10 (13 A) | E77: =COMPUTATION!O6 -> 0 | F77: =E77 -> 0
B78: US10 (14) | F78: 0 | G78: =F77+F78 -> 0
B79: 3. Balance (1 - 2) | I79: =I74-G78 -> Rs. 496,020.00
B80: 4. Deductions: U/s 16
B81: (a) | D81: Standard Deduction (u/s 16 (ia) | G81: =COMPUTATION!K10 -> Rs. 50,000.00
B82: (b) | D82: Entertainment allowance | G82: =COMPUTATION!K8 -> 0
B83: (c) | D83: Tax on employment | G83: =COMPUTATION!K9 -> 0
B84: किराये का 30% | D84: गृह ऋण पर ब्याज | F84: गृहकर | I84: =G82+G83+G81 -> Rs. 50,000.00
B85: =COMPUTATION!D14 -> 0 | D85: =COMPUTATION!F14 -> 0 | F85: =COMPUTATION!I14 -> 0 | I85: =B85+D85+F85 -> 0
B86: 5. Aggregate of 4 (a) and (b) | I86: =I84+I85 -> Rs. 50,000.00
B87: 6. Income chargeable under the head "salaries" (3-5) | K87: =I79-I86 -> Rs. 446,020.00
B88: 7. Add: Any other income reported by employee
B89: Income | F89: Rs
B90: From House Property | F90: =COMPUTATION!K12 -> 0.00
B91: Saving Bank A/C interest | F91: =COMPUTATION!E16 -> 1000.00 | I91: =F90+F91 -> Rs. 1,000.00
B92: 8. Gross total income (6+7) | K92: =K87+I91 -> Rs. 447,020.00
B93: 9. Deductions under Chapter VI A
B94: (A) Section 80C, 80CCC and 80CCD
B95: (a) Section 80C | I95: Gross Amount | K95: Deductible Amount
B96: A | C96: 1 | D96: (A) | E96: GPF | G96: =COMPUTATION!G26 -> 0
C97: 2 | E97: State Insurance | G97: =COMPUTATION!G21 -> 0
C98: 3 | E98: Gr. Acc. Insurance | G98: =COMPUTATION!G27 -> Rs. 2,400.00
C99: 4 | E99: LIC + ULIP + PLI | G99: =COMPUTATION!G22+COMPUTATION!G30+COMPUTATION!M27+COMPUTATION!G28 -> 0
C100: 5 | E100: PPF | G100: =COMPUTATION!G24 -> 0
C101: 6 | E101: Home Loan Installment (Capital) | G101: =COMPUTATION!G29 -> 0
C102: 7 | E102: Notified Bond Of NABARD | G102: ='[2]TAX (OLD)'!L21 -> 0
C103: 8 | E103: Pension Plan (US80ccc+US 80CCD)(1)+GPF-2004 | G103: =COMPUTATION!M21+COMPUTATION!M22+COMPUTATION!G31 -> Rs. 44,436.00
C104: 9 | E104: Tution Fee | G104: =COMPUTATION!M24 -> 0
C105: 10 | E105: NSC + Interest on NSC | G105: =COMPUTATION!G25+COMPUTATION!M23 -> 0
C106: 11 | E106: Sukanya Samridhi A/C | G106: =COMPUTATION!M29 -> 0
C107: 12 | E107: Fixed Deposit above 5 years | G107: =COMPUTATION!M30 -> 0
C108: 13 | E108: Mutual Fund | G108: =COMPUTATION!M28 -> 0 | I108: =SUM(G96:H108) -> Rs. 46,836.00 | K108: =IF(I108<=150000, I108, 150000) -> Rs. 46,836.00
C109: (B) Section 80CCD(2) | G109: =COMPUTATION!O33 -> Rs. 44,436.00 | I109: =G109 -> Rs. 44,436.00 | K109: =I109 -> Rs. 44,436.00
C110: (C) Section 80CCD(1B) (RS.-50000/-) | G110: =COMPUTATION!O34 -> 0 | I110: =SUM(K108,G109,G110) -> Rs. 91,272.00 | K110: =I110 -> Rs. 91,272.00
I111: ………………… 3
B112: :: 3 ::
B113: (B) Other Sections (e.g. 80E, 80G etc.) under Chapter VIA | G113: Gross Amount | I113: Qualifying amount | K113: Deductible Amount
B114: 1 | C114: U/S 80D | G114: =COMPUTATION!O37 -> 0 | I114: =G114 -> 0
B115: 2 | C115: U/S 80DD | G115: =COMPUTATION!O38 -> 0 | I115: 0
B116: 3 | C116: U/S 80DDB | G116: =COMPUTATION!O39 -> 0 | I116: 0
B117: 4 | C117: U/S 80E | G117: =COMPUTATION!O40 -> 0 | I117: 0
B118: 5 | C118: U/S 80G | G118: =COMPUTATION!O41 -> Rs. 12,000.00 | I118: Rs. 12,000.00
B119: 6 | C119: U/S 80GG | I119: 0
B120: 7 | C120: U/S 80GGA | G120: =COMPUTATION!O44 -> 0 | I120: 0
B121: 8 | C121: U/S 80U | G121: =COMPUTATION!O42 -> 0 | I121: 0
B122: 9 | C122: US 80TTA [Exempt Saving Bank Int. Max. RS. 10,000/-] | G122: =COMPUTATION!O43 -> Rs. 1,000.00 | I122: =G122 -> Rs. 1,000.00 | K122: =ROUND(SUM(I114:J122),0) -> Rs. 13,000.00
B123: 10. Aggregate of deductible amount under chapter VIA | K123: =ROUND((K110+K122),0) -> Rs. 104,272.00
B124: 11. Total income (8-10) | E124: (Roundup Figures of Rs 10) | K124: =ROUND((K92-K123),-1) -> Rs. 342,750.00
B125: 12. Tax on total income | K125: =ROUND(IF(K124<=250000,0,IF(K124<=500000,(K124-250000)*0.05,IF(K124<=1000000,12500+(K124-500000)*0.2,IF(K124>1000000,112500+(K124-1000000)*0.3,"0")))),0) -> Rs. 4,638.00
B126: 13. Rebate U/s 87 A (Taxable Income below Rs. 5,00,000/-) | I126: =COMPUTATION!O59 -> Rs. 4,638.00
B127: 14. Tax payable (12-13) | K127: =K125-I126 -> 0
B128: 15. Education & Health cess @ 4% (on tax computed at S.No. 12) | K128: =ROUND((K127*0.04),0) -> 0
B129: 16. Tax payable (14+15) [Round off U/s 288 B] | K129: =K127+K128 -> 0
B130: 17. Less:- Relief under section 89 (Attach Form 10E) | K130: =COMPUTATION!O63 -> 0
B131: 18. Tax payable (14-15) | K131: =K129-K130 -> 0
B132: 19. Tax deducted at source u/s 192 (1) | K132: =COMPUTATION!O66 -> Rs. 2,496.00
B133: =IF(K131>K132,"Income Tax Payable",IF(K131<K132,"Income Tax Refundable","Income Tax Payble/Refundable")) -> Income Tax Refundable | K133: =IF(K131>K132,K131-K132,K132-K131) -> Rs. 2,496.00
B134: Verification
B135: I | C135: =B6&"," -> B.E.O.PICHHOR, | F135: Son/Daughter of | G135: =IF(G60="","",G60) ->  | K135: working in the
B136: capacity of | D136: =D61 -> PRINCIPAL | G136: (designation) do hereby certify that a sum of
B137: Rs. | C137: =K132 -> 2496 | D137: =IF(OR(LEN(FLOOR(C62,1))=13,FLOOR(C62,1)<=0),"Out of range",PROPER(SUBSTITUTE(CONCATENATE(CHOOSE(MID(TEXT(INT(C62),REPT(0,12)),1,1)+1,"","one hundred ","two hundred ","three hundred ","four hundred ","five hundred ","six hundred ","seven hundred ","eight hundred ","nine hundred "),CHOOSE(MID(TEXT(INT(C62),REPT(0,12)),2,1)+1,"",CHOOSE(MID(TEXT(INT(C62),REPT(0,12)),3,1)+1,"ten","eleven","twelve","thirteen","fourteen","fifteen","sixteen","seventeen","eighteen","nineteen"),"twenty","thirty","forty","fifty","sixty","seventy","eighty","ninety"),IF(VALUE(MID(TEXT(INT(C62),REPT(0,12)),2,1))>1,CHOOSE(MID(TEXT(INT(C62),REPT(0,12)),3,1)+1,"","-one","-two","-three","-four","-five","-six","-seven","-eight","-nine"),IF(VALUE(MID(TEXT(INT(C62),REPT(0,12)),2,1))=0,CHOOSE(MID(TEXT(INT(C62),REPT(0,12)),3,1)+1,"","one","two","three","four","five","six","seven","eight","nine"),"")),IF(C62>=10^9," billion ",""),CHOOSE(MID(TEXT(INT(C62),REPT(0,12)),4,1)+1,"","one hundred ","two hundred ","three hundred ","four hundred ","five hundred ","six hundred ","seven hundred ","eight hundred ","nine hundred "),CHOOSE(MID(TEXT(INT(C62),REPT(0,12)),5,1)+1,"",CHOOSE(MID(TEXT(INT(C62),REPT(0,12)),6,1)+1,"ten","eleven","twelve","thirteen","fourteen","fifteen","sixteen","seventeen","eighteen","nineteen"),"twenty","thirty","forty","fifty","sixty","seventy","eighty","ninety"),IF(VALUE(MID(TEXT(INT(C62),REPT(0,12)),5,1))>1,CHOOSE(MID(TEXT(INT(C62),REPT(0,12)),6,1)+1,"","-one","-two","-three","-four","-five","-six","-seven","-eight","-nine"),IF(VALUE(MID(TEXT(INT(C62),REPT(0,12)),5,1))=0,CHOOSE(MID(TEXT(INT(C62),REPT(0,12)),6,1)+1,"","one","two","three","four","five","six","seven","eight","nine"),"")),IF(VALUE(MID(TEXT(INT(C62),REPT(0,12)),4,3))>0," million ",""),CHOOSE(MID(TEXT(INT(C62),REPT(0,12)),7,1)+1,"","one hundred ","two hundred ","three hundred ","four hundred ","five hundred ","six hundred ","seven hundred ","eight hundred ","nine hundred "),CHOOSE(MID(TEXT(INT(C62),REPT(0,12)),8,1)+1,"",CHOOSE(MID(TEXT(INT(C62),REPT(0,12)),9,1)+1,"ten","eleven","twelve","thirteen","fourteen","fifteen","sixteen","seventeen","eighteen","nineteen"),"twenty","thirty","forty","fifty","sixty","seventy","eighty","ninety"),IF(VALUE(MID(TEXT(INT(C62),REPT(0,12)),8,1))>1,CHOOSE(MID(TEXT(INT(C62),REPT(0,12)),9,1)+1,"","-one","-two","-three","-four","-five","-six","-seven","-eight","-nine"),IF(VALUE(MID(TEXT(INT(C62),REPT(0,12)),8,1))=0,CHOOSE(MID(TEXT(INT(C62),REPT(0,12)),9,1)+1,"","one","two","three","four","five","six","seven","eight","nine"),"")),IF(VALUE(MID(TEXT(INT(C62),REPT(0,12)),7,3))," thousand ",""),CHOOSE(MID(TEXT(INT(C62),REPT(0,12)),10,1)+1,"","one hundred ","two hundred ","three hundred ","four hundred ","five hundred ","six hundred ","seven hundred ","eight hundred ","nine hundred "),CHOOSE(MID(TEXT(INT(C62),REPT(0,12)),11,1)+1,"",CHOOSE(MID(TEXT(INT(C62),REPT(0,12)),12,1)+1,"ten","eleven","twelve","thirteen","fourteen","fifteen","sixteen","seventeen","eighteen","nineteen"),"twenty","thirty","forty","fifty","sixty","seventy","eighty","ninety"),IF(VALUE(MID(TEXT(INT(C62),REPT(0,12)),11,1))>1,CHOOSE(MID(TEXT(INT(C62),REPT(0,12)),12,1)+1,"","-one","-two","-three","-four","-five","-six","-seven","-eight","-nine"),IF(VALUE(MID(TEXT(INT(C62),REPT(0,12)),11,1))=0,CHOOSE(MID(TEXT(INT(C62),REPT(0,12)),12,1)+1,"","one","two","three","four","five","six","seven","eight","nine"),"")))," "," ")&IF(FLOOR(C62,1)>1," Rupees"," Rupees"))&IF(ISERROR(FIND(".",C62,1)),""," and "&PROPER(IF(LEN(LEFT(TRIM(MID(SUBSTITUTE('[2]16 NO.'!$B$62,".",REPT(" ",255)),255,200)),2))=1,CHOOSE(1*LEFT(TRIM(MID(SUBSTITUTE('[2]16 NO.'!$B$62,".",REPT(" ",255)),255,200)),2),"ten","twenty","thirty","forty","fifty","sixty","seventy","eighty","ninety")&" Paise","")&CONCATENATE(CHOOSE(MID(TEXT(INT(LEFT(TRIM(MID(SUBSTITUTE('[2]16 NO.'!$B$62,".",REPT(" ",255)),255,200)),2)),REPT(0,12)),11,1)+1,"",CHOOSE(MID(TEXT(INT(LEFT(TRIM(MID(SUBSTITUTE('[2]16 NO.'!$B$62,".",REPT(" ",255)),255,200)),2)),REPT(0,12)),12,1)+1,"ten","eleven","twelve","thirteen","fourteen","fifteen","sixteen","seventeen","eighteen","nineteen"),"twenty","thirty","forty","fifty","sixty","seventy","eighty","ninety"),IF(VALUE(MID(TEXT(INT(LEFT(TRIM(MID(SUBSTITUTE('[2]16 NO.'!$B$62,".",REPT(" ",255)),255,200)),2)),REPT(0,12)),11,1))>1,CHOOSE(MID(TEXT(INT(LEFT(TRIM(MID(SUBSTITUTE('[2]16 NO.'!$B$62,".",REPT(" ",255)),255,200)),2)),REPT(0,12)),12,1)+1,"","-one","-two","-three","-four","-five","-six","-seven","-eight","-nine")&" Paise",IF(LEFT(TRIM(MID(SUBSTITUTE('[2]16 NO.'!$B$62,".",REPT(" ",255)),255,200)),2)="01","one Paise",IF(LEFT(TRIM(MID(SUBSTITUTE('[2]16 NO.'!$B$62,".",REPT(" ",255)),255,200)),1)="0",CHOOSE(MID(TEXT(INT(LEFT(TRIM(MID(SUBSTITUTE('[2]16 NO.'!$B$62,".",REPT(" ",255)),255,200)),2)),REPT(0,12)),12,1)+1,"","one","two","three","four","five","six","seven","eight","nine")&" Paise",""))))))) -> Two Thousand Four Hundred Ninety-Six Rupees | I137: (in words) has beeen deducted and
B138: deposited to the credit of the Central Government. I further certify that the information given above is true, complete and correct and is based on the books of account, documents, TDS statement, TDS deposited and other available records.
B139: Place | D139: =D65 -> GHS HARIJAN BASTI PICHHORE
B140: Date | D140: =TODAY() -> 2020-12-20 | F140: Signature of person responsible for deduction of tax
B141: Designation | D141: =D136 -> PRINCIPAL | F141: Full name : | G141: =B6 -> B.E.O.PICHHOR
